Workbook

Sheet Cover
C5: TechScope
B6: Solar Water Heating Market Readiness Analysis Tool
E7: Version 2.0
B11: This tool allows users to evaluate the Solar Water Heating (SWH) market of any country by entering relevant data and calculating a TechScope score for the respective country. The tool is based on the SWH TechScope Market Readiness Assessment methodology, which provides stakeholders with the ability to benchmark and evaluate specific countries’ SWH support framework, national conditions, financing environment and business climate. The companion report provides a detailed explanation of the TechScope methodology and applies the methodology to the five countries receiving support under the GSWH project (Albania, Chile, Mexico, India, and Lebanon) and evaluates their experiences in establishing and growing a SWH market.
B12: Version 2.0 includes a greenhouse gas calculator tool to help quantify the GHG emissions reductions associated with SWH installations at various scales.

Sheet Instructions
A1: Instructions
B3: Overview
B5: This tool can be used to calculate the TechScope score for a given country. The tool should be used in conjunction with the guidance contained in the companion report: Solar Water Heating TechScope Market Readiness Assessment.
B6: The tool includes four sheets: two data input sheets ("Country Data" and "TechScope Inputs") and two output sheets ("Score" and "Report"). To calculate a TechScope score for a country, complete the data entry sheets as described below.
B8: Entering data
B10: TechScope scores are based on 18 indicators spread across the following 4 parameters:
C11: Parameter I: Solar Water Heating Support Framework
C12: Parameter II: National Conditions
C13: Parameter III: Financing
C14: Parameter IV: Business Climate
B15: In order to calculate a TechScope Score, this tool requires users to enter data for the country in question. To support data collection, when possible, links to data sources for required data fields are provided in the tool. In addition, instructions for data collection are included as comments for some data fields. In some instances, the user is responsible for finding the appropriate information to answer the question associated with the indicator. Note that if any data points are unavailable for a given country, it may not be possible to calculate a TechScope score. In this event, users may wish to consider alternative data sources or identify suitable proxy data.
B16: Throughout the input sheets, color-coded shading is used to indicate which cells will accept data entry. Note that input cells are differentiated between optional and mandatory. Optional cells are used when generating a summary report but are not required to calculate a SWH TechScope score.
C17: Legend:
C18: No input
C19: Calculated
C20: Input field (optional) | D20: <-- Required to generate printable report
C21: Input field (mandatory) | D21: <-- Required to calculate TechScope Index scores
B24: Viewing and printing results
B26: Results can be viewed in a simple summary table showing the final scores for each indicator (see "Score" sheet). The tool can also be used to generate a summary report which provides relevant country data as well as a visually informative overview of each indicator's input value(s) and resulting score (see "Report" sheet). The Report is designed to serve as a printable or publishable summary document of the data and resulting score.
B27: Note that mandatory data (blue cells) is required to calculate TechScope scores. Missing data means a TechScope score cannot be calculated. Optional data (orange cells) is not used to calculate TechScope scores but is presented in the summary report.

Sheet Country data
A1: COUNTRY DATA | H1: Legend
H2: No input | I2: Input field (optional)
A3: Country Name | H3: Calculated | I3: Input field (mandatory)
A6: 1 | B6: Socio-economic data
A8: 1a | B8: Data Description | C8: Data Source | D8: Unit | E8: =F8-1 -> 2009 | F8: 2010 | G8: 2011 | H8: 2012 | I8: =J8-1 -> 2013 | J8: =YEAR(TODAY())-1 -> 2014
B9: Population | C9: World Bank | D9: #
B10: GDP | C10: World Bank
A13: 2 | B13: Energy data
A15: 2a | B15: Balance indicators
B17: Data Description | C17: Data Source | D17: Unit | E17: =F17-1 -> 2009 | F17: 2010 | G17: 2011 | H17: =I17-1 -> 2012 | I17: =J17-1 -> 2013 | J17: =YEAR(TODAY())-1 -> 2014 | K17: =E17&"-"&J17 -> 2009-2014
B18: Energy Production | C18: IEA: Indicators | D18: Mtoe
B19: Residential Energy Consumption | C19: IEA: Balances | D19: Ktoe
F20: =IF(OR(ISBLANK(F19),ISBLANK(G19)),"",(G19-F19)/F19) ->  | G20: =IF(OR(ISBLANK(G19),ISBLANK(H19)),"",(H19-G19)/G19) ->  | H20: =IF(OR(ISBLANK(H19),ISBLANK(I19)),"",(I19-H19)/H19) ->  | I20: =IF(OR(ISBLANK(I19),ISBLANK(J19)),"",(J19-I19)/I19) ->  | J20: =IF(OR(ISBLANK(J19),ISBLANK(#REF!)),"",(#REF!-J19)/J19) -> 
B21: Average Year-on-Year Growth in Residential Energy Consumption | F21: =(F19-E19)/E19 ->  | G21: =(G19-F19)/F19 ->  | H21: =(H19-G19)/G19 ->  | I21: =(I19-H19)/H19 ->  | J21: =(J19-I19)/I19 ->  | K21: =AVERAGE(F21:J21) -> 
A23: 2b | B23: Primary Fuels for Residential Heating1
B25: Heating Fuel | C25: % of Total Heating | D25: Average retail price of primary heating fuel ($/kWhth)
B26: Oil | E26: =IF(MAX(C$26:C$30)=C26,"Required","") -> Required | F26: =D26 -> 0
B27: Natural Gas | E27: Required | F27: =D27 -> 0
B28: Electricity | E28: =IF(MAX(C$26:C$30)=C28,"Required","") -> Required | F28: 0
B29: Wood | E29: =IF(MAX(C$26:C$30)=C29,"Required","") -> Required | F29: 0
B30: Other | E30: Required | F30: 0
B31: Total | C31: =SUM(C26:C30) -> 0
A33: 1User is responsible for finding and entering the data. Appropriate data source will depend on country and is at the discretion of the user.Enter data for most recent year available
A37: 2c | B37: Generation cost of primary heating fuel ($/kWh)1
A38: 1User is responsible for finding and entering the data. Appropriate data source will depend on country and is at the discretion of the user.Enter data for most recent year available
AM39: Year | AN39: Year | AO39: Year
AM42: =IF(AM$3<=#REF!,$F42,0) ->  | AN42: =IF(AN$3<=#REF!,$F42,0) ->  | AO42: =IF(AO$3<=#REF!,$F42,0) -> 

Sheet TechScope Inputs
A1: SOLAR HOT WATER MARKET DATA | I1: Legend
I2: No input | J2: Input field (optional) | K2: Reference to section of companion report | L2: These columns will be hidden ----->
A3: Country Name | D3: ='Country data'!C3 -> 0 | I3: Calculated | J3: Input field (mandatory)
A5: 1 | C5: Parameter I: Solar Water Heating Support Framework
A7: 1a | C7: SWH Targets
C9: Has the country established a solar thermal target?
A11: 1b | C11: Financial Incentives for System Installation
C13: Does the country offer financial or fiscal incentives for SWH system installation? These may include, for example, direct cash payments (e.g. grants, rebates, performance-based incentives, and feed-in tariffs) or tax incentives (e.g. tax credits, income tax deductions, etc.)
A15: 1c | C15: SWH Loan Programs
C17: Does the country offer loan policies or programs supporting SWH system installation, such as low-interest loan programs, interest rate buy-down programs, and loan loss reserves?
A19: 1d | C19: Building Mandates
C21: Does the country require that solar heating (or renewable heating more broadly) be integrated into new construction and/or major renovations of buildings? | L21: Mandate policy types
A23: 1e | C23: Outreach Campaigns
C25: Are there any government-led or government-supported campaigns to raise awareness about solar heating in place?
A28: 2 | C28: Parameter II: National Conditions
A30: 2a | C30: Insolation
C32: Data Description | D32: Data Source | E32: Unit | F32: Value | G32: Tier
C33: Solar Insolation | D33: Clean Energy Solutions Center’s Global RE Opportunity Tool | E33: Average Solar Resource (kWh/m2/day) | G33: =VLOOKUP(F33,L33:M43,2,FALSE) ->  | I33: Note: Enter data for most recent year available. | L33: Average Solar Resource (kWh/m2/day) | M33: Tier
L34: <2.5 | M34: 0 | P34: 2.5
A35: 2b | C35: SWH Market Penetration | L35: 2.5-3.0 | M35: 1
L36: 3.0-3.5 | M36: 2
C37: Data Description | D37: Data Source | E37: Unit | F37: Value | L37: 3.5-4.0 | M37: 3
C38: SWH Market penetration per 1000 people | D38: IEA Solar Heating & Cooling Programme Annual Report | E38: kWth/1000 people | I38: Note: Enter data for most recent year available. | L38: 4.0-4.5 | M38: 4
L39: 4.5-5.0 | M39: 5
A40: 2c | C40: Residential Energy Consumption Growth | L40: 5.0-5.5 | M40: 6
L41: 5.5-6.0 | M41: 7
C42: Data Description | D42: Data Source | E42: Unit | F42: Value | L42: 6.0-6.5 | M42: 8
C43: Residential Energy Consumption Growth | D43: (Calculated from "Country Data", Section 2a). | E43: %/year | F43: ='Country data'!K21 ->  | I43: Note: Based on data entered on "Country Data" sheet. | L43: 6.5+ | M43: 9
A45: 2d | C45: SWH Market Growth
I46: Note: Data for the year of interest is published two years after the fact (e.g. 2007 data is in the 2009 report)
C47: SWH installed capacity | D47: Data Source | E47: Unit | F47: 2007 | G47: 2008 | H47: 2009 | I47: 2010 | J47: 2011 | K47: 2012 | L47: Growth Rate from | M47: To | N47: Score | O47: Score Achieved
C48: Total | D48: IEA Solar Heating & Cooling Programme Annual Reports (2007-2013) | E48: MWth | L48: -999999 | M48: 0 | N48: 0 | O48: =IF(AND($D$55>=L48,$D$55<M48),N48,"") -> 
C49: Annual market growth | D49: (Calculated) | E49: % | G49: =IF(OR(ISBLANK(F48),ISBLANK(G48)),"",(G48-F48)/F48) ->  | H49: =IF(OR(ISBLANK(G48),ISBLANK(H48)),"",(H48-G48)/G48) ->  | K49: =IF(OR(ISBLANK(J48),ISBLANK(K48)),"",(K48-J48)/J48) ->  | L49: 0 | M49: 0.03 | N49: 1 | O49: =IF(AND($D$55>=L49,$D$55<M49),N49,"") -> 
L51: 0.03 | M51: 0.06 | N51: 2 | O51: =IF(AND($D$55>=L51,$D$55<M51),N51,"") -> 
L52: 0.06 | M52: 0.1 | N52: 3 | O52: =IF(AND($D$55>=L52,$D$55<M52),N52,"") -> 
D53: Average Annual Market Growth | L53: 0.1 | M53: 0.15 | N53: 4 | O53: =IF(AND($D$55>=L53,$D$55<M53),N53,"") -> 
L54: 0.15 | M54: 1000000 | N54: 5 | O54: =IF(AND($D$55>=L54,$D$55<M54),N54,"") -> 
D55: =AVERAGE(G49:K49) -> 
A64: 2e | C64: SWH Competitiveness: Payback Period
C66: Data Description | D66: Data Source | E66: Unit | F66: Value | H66: For RETScreen Input "Fuel Rate", use the following value:
C67: Payback period | D67: (Calculated using RETScreen v4 and country-specific data) | E67: Years | H67: ='Country data'!D37 -> 0 | I67: Note: Data entry required on "Country Data" sheet, section 2b. | L67: Payback from | M67: To | N67: Score | O67: Score Achieved
L68: 12 | M68: 100000 | N68: 0 | O68: =IF(ISBLANK($F$67),"",IF(AND($F$67>=L68,$F$67<M68),N68,"")) -> 
L69: 10 | M69: 12 | N69: 1
A70: 2f | C70: SWH Competitiveness: Heating Fuel Subsidies | L70: 8 | M70: 10 | N70: 2
L71: 5 | M71: 8 | N71: 3
C72: Are subsidies available which reduce the price of conventional residential heating? | L72: 2 | M72: 5 | N72: 4
L73: -10000000 | M73: 2 | N73: 5
A75: 3 | C75: Parameter III: Financing | L75: Moody's | M75: Standard & Poor’s | N75: Score
L76: Aaa, Aaa1, Aaa2, Aaa3 | M76: AAA, AAA-, AA+ | N76: 5
A77: 3a | C77: Country Credit Rating | L77: Aa, Aa1, Aa2, Aa3 | M77: AA, AA-, A+ | N77: 4
L78: A, A1, A2, A3 | M78: A, A-, BBB+ | N78: 3
C79: Data Description | D79: Data Source | E79: Value | F79: Score | L79: Baa, Baa1, Baa2, Baa3 | M79: BBB, BBB-, BB+ | N79: 2
C80: Moody's Credit Rating | D80: Trading Economics | F80: =VLOOKUP(E80,L76:N82,3,FALSE) ->  | L80: Ba, Ba1, Ba2, Ba3 | M80: BB, BB-, B+ | N80: 1
C81: S&P Credit Rating | D81: Trading Economics | F81: =VLOOKUP(E81,M75:N82,2,FALSE) ->  | L81: B, B1, B2, B3 | M81: B, B-, CCC+ | N81: 0.5
C82: Average | F82: =AVERAGE(F80:F81) ->  | L82: Caa, Caa1, Caa2, Caa3 or below | M82: CCC, CCC-, CC+ or below | N82: 0
A84: 3b | C84: Access to Finance | L84: Real Interest Rate | N84: Score | O84: Score Achieved
L85: =M86 -> 0.25 | M85: 100 | N85: 0 | O85: =IF(OR(ISBLANK($E$88),ISBLANK($F$88),ISBLANK($G$88)),"",IF(AND(AVERAGE($E$88:$G$88)>=L85,AVERAGE($E$88:$G$88)<M85),N85,"")) -> 
C86: Data Description | D86: Data Source | E86: 2010 | F86: 2011 | G86: 2012 | H86: Score | L86: 0.15 | M86: 0.25 | N86: 1
C87: Domestic Credit Provided by the Banking Sector (% of GDP) | D87: World Bank | H87: =SUM(O93:O98) -> 0 | L87: 0.1 | M87: 0.15 | N87: 2
C88: Real Interest Rate (%) | D88: World Bank | H88: =SUM(O85:O91) -> 0 | L88: =M89 -> 0.05 | M88: 0.1 | N88: 3
C89: Average | H89: =AVERAGE(H87:H88) -> 0 | L89: 0.01 | M89: 0.05 | N89: 4
L90: 0 | M90: 0.01 | N90: 5
L91: -100 | M91: 0 | N91: 0
E92: Note: Enter values as percentages | L92: Domestic Credit | N92: Score | O92: Score Achieved
L93: -100 | M93: 0.05 | N93: 0 | O93: =IF(OR(ISBLANK($E$87),ISBLANK($F$87),ISBLANK($G$87)),"",IF(AND(AVERAGE($E$87:$G$87)>=L93,AVERAGE($E$87:$G$87)<M93),N93,"")) -> 
L94: 0.05 | M94: 0.25 | N94: 1
A95: 4 | C95: Parameter IV: Business Climate | L95: =M94 -> 0.25 | M95: 0.5 | N95: 2
L96: =M95 -> 0.5 | M96: 0.75 | N96: 3
A97: 4a | C97: Doing Business Index | L97: 0.75 | M97: 1.25 | N97: 4
L98: 1.25 | M98: 100 | N98: 5
C99: Data Description | D99: Data Source | E99: Ranking | F99: Percentile | L99: From | M99: To | N99: Score | O99: Score Achieved
C100: Doing Business Index | D100: World Bank | F100: =1-(E100/185) -> 1 | I100: Note: Enter data for most recent year available. | L100: 0 | M100: 0.2 | N100: 1 | O100: =IF(ISBLANK($E$100),"",IF(AND($F$100>=L100,$F$100<M100),N100,"")) -> 
L101: 0.2 | M101: 0.4 | N101: 2 | O101: =IF(ISBLANK($E$100),"",IF(AND($F$100>=L101,$F$100<M101),N101,"")) -> 
A102: 4b | C102: Manufacturing Capacity | L102: 0.4 | M102: 0.6 | N102: 3
L103: 0.6 | M103: 0.8 | N103: 4
C104: Data Description | D104: Data Source | E104: Value | L104: 0.8 | M104: 1 | N104: 5
C105: MVA as percentage of GDP at constant 2005 prices in US$ | D105: UNIDO | I105: Note: Enter data for most recent year available.
L106: MVA as percentage of GDP
A107: 4c | C107: Product Standards and Certification | L107: at constant 2005 prices in US$ | M107: Score
L108: 0-2% | M108: 0
C109: What standards or certification infrastructure are currently in place? Please check all that apply. | L109: >2-4% | M109: 1
D110: Existence of a national standards entity | L110: >4-8% | M110: 2
D111: Solar thermal equipment standards exist | L111: >8-12% | M111: 3
D112: Domestic solar thermal testing facilities are available | L112: >12-17% | M112: 4
D113: Solar thermal product national certification has been introduced | L113: >17% | M113: 5
D114: Solar thermal products regional or international certification is introduced | L114: FALSE | M114: =IF(L114,1,0) -> 0 | N114: =SUM(M$114:M114)*PRODUCT(M$114:M114) -> 0
L115: FALSE | M115: 0 | N115: =SUM(M$114:M115)*PRODUCT(M$114:M115) -> 0
L116: FALSE | M116: 0 | N116: =SUM(M$114:M116)*PRODUCT(M$114:M116) -> 0
A117: 4d | C117: Installer Certification | L117: FALSE | M117: 0 | N117: =SUM(M$114:M117)*PRODUCT(M$114:M117) -> 0
L118: FALSE | M118: 0 | N118: =SUM(M$114:M118)*PRODUCT(M$114:M118) -> 0
C119: Is there a national certification system in place for either individual installers or installation companies?
A121: 4e | C121: Industry Association
C123: Is there a solar thermal industry association? For the purpose of this analysis, we define an active industry association as one that represents more than half of the solar thermal industry and is pursuing industry objectives such as policy lobbying, capacity building or training.
AN128: Year | AO128: Year | AP128: Year
AN129: 33 | AO129: 34 | AP129: 35
AN134: =IF(#REF!<=$G129,$G132,0) ->  | AO134: =IF(#REF!<=$G129,$G132,0) ->  | AP134: =IF(#REF!<=$G129,$G132,0) -> 

Sheet Score
B2: Parameter | C2: Parameter Weight | D2: Indicator Weight | E2: Indicator | F2: Raw Score | G2: Weighted Score
B3: I. Solar Water Heating Support Framework | C3: 0.29 | D3: 0.05 | E3: SWH Targets | F3: =IF('TechScope Inputs'!H9="Yes",5,0) -> 0 | G3: =F3*D3 -> 0
D4: 0.08 | E4: Financial Incentives for System Installation | F4: =IF('TechScope Inputs'!H13="Yes",5,0) -> 0 | G4: 0
D5: 0.07 | E5: SWH Loan Programs | F5: =IF('TechScope Inputs'!H17="Yes",5,0) -> 0 | G5: 0
D6: 0.05 | E6: Building Mandates | F6: =IF('TechScope Inputs'!H21="National",5,IF('TechScope Inputs'!H21="Subnational",2.5,0)) -> 0 | G6: 0
D7: 0.04 | E7: Outreach Campaigns | F7: =IF('TechScope Inputs'!H25="Yes",5,0) -> 0 | G7: 0
B8: II. National Conditions | C8: 0.3 | D8: 0.05 | E8: Insolation | F8: =('TechScope Inputs'!G33/9)*5 -> 
D9: 0.04 | E9: SWH Market Penetration | F9: ='TechScope Inputs'!F38/268.2*5 -> 0 | G9: 0
D10: 0.05 | E10: Residential Energy Consumption Growth | F10: =MIN(5,'TechScope Inputs'!F43/0.025*5) -> 
D11: 0.04 | E11: SWH Market Growth | F11: =SUM('TechScope Inputs'!O48:O54) -> 
D12: 0.07 | E12: SWH Competitiveness: Payback Period | F12: =SUM('TechScope Inputs'!O68:O73) -> 0 | G12: 0
D13: 0.05 | E13: SWH Competitiveness: Heating Fuel Subsidy | F13: =IF('TechScope Inputs'!G72="Yes",0,5) -> 5 | G13: 0.25
B14: III. Financing | C14: 0.2 | D14: 0.05 | E14: Country Credit Rating | F14: ='TechScope Inputs'!F82 -> 
D15: 0.15 | E15: Access to Finance | F15: ='TechScope Inputs'!H89 -> 0 | G15: 0
B16: IV. Business Climate | C16: 0.21 | D16: 0.05 | E16: Doing Business Index | F16: =SUM('TechScope Inputs'!O100:O104) -> 0 | G16: 0
D17: 0.03 | E17: Manufacturing Capacity | F17: =VLOOKUP('TechScope Inputs'!E105,'TechScope Inputs'!L108:M113,2,FALSE) -> 
D18: 0.05 | E18: Product Standards and Certification | F18: =MAX('TechScope Inputs'!N114:N118) -> 0 | G18: 0
D19: 0.04 | E19: Installer Certification | F19: =IF('TechScope Inputs'!H119="Yes",5,0) -> 0 | G19: 0
D20: 0.04 | E20: Industry Association | F20: =IF('TechScope Inputs'!H123="Yes",5,0) -> 0 | G20: 0
F21: 5
F23: Overall Score | G23: =SUM(G3:G20) -> 

Sheet Report
B1: Techscope Report | K1: Country:
B2: Solar Thermal Market Analysis | K2: ='Country data'!C3 -> 0
B4: COUNTRY TRENDS
B6: POPULATION | H6: GDP
B22: ENERGY PRODUCTION | H22: RESIDENTIAL ENERGY CONSUMPTION
B38: PRIMARY FUELS FOR RESIDENTIAL HEATING
B40: Fuel | D40: % of total | F40: % of total | N40: Average Retail Price ($/kWhth)
B42: ='Country data'!B26 -> Oil | D42: ='Country data'!C26 -> 0 | L42: ='Country data'!D26 -> 0
B43: ='Country data'!B27 -> Natural Gas | D43: ='Country data'!C27 -> 0 | L43: ='Country data'!D27 -> 0
B44: ='Country data'!B28 -> Electricity | D44: ='Country data'!C28 -> 0 | L44: ='Country data'!D28 -> 0
B45: ='Country data'!B29 -> Wood | D45: ='Country data'!C29 -> 0 | L45: ='Country data'!D29 -> 0
B46: ='Country data'!B30 -> Other | D46: ='Country data'!C30 -> 0 | L46: ='Country data'!D30 -> 0
B52: TechScope Summary Report | G52: - 1 - | L52: Date Prepared: | M52: =TODAY() -> 2015-11-09
B54: Techscope Report | K54: Country:
B55: Solar Thermal Market Analysis | K55: =K2 -> 0
B57: SOLAR HOT WATER MARKET DATA
B59: Parameter I: Solar Water Heating Support Framework | N59: Score
B61: þ | C61: 1a. SWH targets | N61: =Score!F3 -> 0
B62: þ | C62: 1b. Financial incentives for system installation | N62: =Score!F4 -> 0
B63: þ | C63: 1c. SWH loan programs for system installation | N63: =Score!F5 -> 0
B64: þ | C64: 1d. Required SWH for new construction and renovations | N64: =Score!F6 -> 0
B65: þ | C65: 1e. Government-sponsored awareness campaigns | N65: =Score!F7 -> 0
B67: Parameter II: National Conditions | N67: Score
C69: 2a. Insolation
B70: ='TechScope Inputs'!F33 -> 0 | C70: =IF($B70=C71,1,0) -> 0 | D70: =IF($B70=D71,1,0) -> 0 | E70: 0 | F70: 0 | G70: 0 | H70: 0 | I70: 0 | J70: 0 | K70: 0 | L70: 0 | N70: =Score!F8 -> 
B71: kWh/m2/day | C71: ='TechScope Inputs'!L34 -> <2.5 | D71: ='TechScope Inputs'!L35 -> 2.5-3.0 | E71: ='TechScope Inputs'!L36 -> 3.0-3.5 | F71: ='TechScope Inputs'!L37 -> 3.5-4.0 | G71: ='TechScope Inputs'!L38 -> 4.0-4.5 | H71: ='TechScope Inputs'!L39 -> 4.5-5.0 | I71: ='TechScope Inputs'!L40 -> 5.0-5.5 | J71: ='TechScope Inputs'!L41 -> 5.5-6.0 | K71: ='TechScope Inputs'!L42 -> 6.0-6.5 | L71: ='TechScope Inputs'!L43 -> 6.5+
C73: 2b. SWH Market Penetration
B74: ='TechScope Inputs'!F38 -> 0 | N74: =Score!F9 -> 0
B75: kWth/1000 people
C78: 2c. Residential Energy Consumption Growth
B79: ='TechScope Inputs'!F43 ->  | C79: =IF(B79<=0,1,0) ->  | F79: =IF(AND($B79>0,$B79<0.025),1,0) ->  | J79: =IF(B79>=0.025,1,0) ->  | N79: =Score!F10 -> 
B80: %/yr | C80: ≤ 0% | F80: 0 - 2.5% | J80: ≥ 2.5%
C82: 2d. SWH Market Growth
B83: ='TechScope Inputs'!D55 ->  | C83: =IF(N83=0,1,0) ->  | D83: =IF(N83=1,1,0) ->  | F83: =IF(N83=2,1,0) ->  | H83: =IF(N83=3,1,0) ->  | J83: =IF(N83=4,1,0) ->  | L83: =IF(N83=5,1,0) ->  | N83: =Score!F11 -> 
B84: %/yr | C84: < 0% | D84: 0 - 3% | F84: 3 - 6% | H84: 6 - 10% | J84: 10 - 15% | L84: ≥ 15%
C86: 2e. SWH Competitiveness: Payback Period
B87: ='TechScope Inputs'!F67 -> 0 | C87: =IF($N87=1,1,0) -> 0 | E87: =IF($N87=2,1,0) -> 0 | G87: =IF($N87=3,1,0) -> 0 | I87: =IF($N87=4,1,0) -> 0 | K87: =IF($N87=5,1,0) -> 0 | N87: =Score!F12 -> 0
B88: Years | C88: ≤ 10 | E88: 8 - 10 | G88: 5 - 8 | I88: 2 - 5 | K88: < 2
B90: þ | C90: 2f. SWH Competitiveness: Heating Fuel Subsidy | N90: =Score!F13 -> 5
B92: TechScope Summary Report | G92: - 2 - | L92: Date Prepared: | M92: =TODAY() -> 2015-11-09
B94: Techscope Report | K94: Country:
B95: Solar Thermal Market Analysis | K95: =K2 -> 0
B97: SOLAR HOT WATER MARKET DATA
B99: Parameter III: Financing | N99: Score
C101: 3a. Country Credit Rating
B102: ='TechScope Inputs'!E80 -> 0 | C102: =IF(C103=$B102,1,0) -> 1 | D102: =IF(D103=$B102,1,0) -> 0 | E102: 0 | F102: 0 | G102: 0 | H102: 0 | I102: 0 | J102: 0 | K102: Moody's | N102: =Score!F14 -> 
C103: ='TechScope Inputs'!L83 -> 0 | D103: ='TechScope Inputs'!L82 -> Caa, Caa1, Caa2, Caa3 or below | E103: ='TechScope Inputs'!L81 -> B, B1, B2, B3 | F103: ='TechScope Inputs'!L80 -> Ba, Ba1, Ba2, Ba3 | G103: ='TechScope Inputs'!L79 -> Baa, Baa1, Baa2, Baa3 | H103: ='TechScope Inputs'!L78 -> A, A1, A2, A3 | I103: ='TechScope Inputs'!L77 -> Aa, Aa1, Aa2, Aa3 | J103: ='TechScope Inputs'!L76 -> Aaa, Aaa1, Aaa2, Aaa3
B104: ='TechScope Inputs'!E81 -> 0 | C104: =IF(C105=$B104,1,0) -> 1 | D104: 0 | E104: 0 | F104: 0 | G104: 0 | H104: 0 | I104: 0 | J104: 0 | K104: S&P
C105: ='TechScope Inputs'!M83 -> 0 | D105: ='TechScope Inputs'!M82 -> CCC, CCC-, CC+ or below | E105: ='TechScope Inputs'!M81 -> B, B-, CCC+ | F105: ='TechScope Inputs'!M80 -> BB, BB-, B+ | G105: ='TechScope Inputs'!M79 -> BBB, BBB-, BB+ | H105: ='TechScope Inputs'!M78 -> A, A-, BBB+ | I105: ='TechScope Inputs'!M77 -> AA, AA-, A+ | J105: ='TechScope Inputs'!M76 -> AAA, AAA-, AA+
C107: 3b. Access to Finance
B108: =AVERAGE('TechScope Inputs'!E87:G87) ->  | C108: =IF('TechScope Inputs'!$H$87=0,1,0) -> 1 | D108: =IF('TechScope Inputs'!$H$87=1,1,0) -> 0 | E108: =IF('TechScope Inputs'!$H$87=2,1,0) -> 0 | F108: =IF('TechScope Inputs'!$H$87=3,1,0) -> 0 | G108: =IF('TechScope Inputs'!$H$87=4,1,0) -> 0 | H108: =IF('TechScope Inputs'!$H$87=5,1,0) -> 0 | I108: Domestic Credit | N108: =Score!F15 -> 0
C109: < 5% | D109: 5 - 25% | E109: 25 - 50% | F109: 50 - 75% | G109: 75 - 125% | H109: > 125% | I109: Provided by the
I110: Banking Sector
I111: (% of GDP)
B112: =AVERAGE('TechScope Inputs'!E88:G88) ->  | C112: =IF('TechScope Inputs'!$H$88=0,1,0) -> 1 | D112: =IF('TechScope Inputs'!$H$88=1,1,0) -> 0 | E112: =IF('TechScope Inputs'!$H$88=2,1,0) -> 0 | F112: =IF('TechScope Inputs'!$H$88=3,1,0) -> 0 | G112: =IF('TechScope Inputs'!$H$88=4,1,0) -> 0 | H112: =IF('TechScope Inputs'!$H$88=5,1,0) -> 0 | I112: Real Interest Rate
C113: < 0% | D113: > 25% | E113: 15 - 25% | F113: 10 - 15% | G113: 5 - 10% | H113: 0 - 5%
B115: Parameter IV: Business Climate | N115: Score
C117: 4a. Doing Business Index
B118: ='TechScope Inputs'!E100 -> 0 | N118: =Score!F16 -> 0
B119: Country Rank
C122: 4b.Manufacturing Capacity
B123: ='TechScope Inputs'!E105 -> 0 | C123: =IF($N123=1,1,0) ->  | E123: =IF($N123=2,1,0) ->  | G123: =IF($N123=3,1,0) ->  | I123: =IF($N123=4,1,0) ->  | K123: =IF($N123=5,1,0) ->  | N123: =Score!F17 -> 
C124: ='TechScope Inputs'!L109 -> >2-4% | E124: ='TechScope Inputs'!L110 -> >4-8% | G124: ='TechScope Inputs'!L111 -> >8-12% | I124: ='TechScope Inputs'!L112 -> >12-17% | K124: ='TechScope Inputs'!L113 -> >17%
C126: 4c. Product Standards and Certification
B127: þ | C127: Existence of a national standards entity | N127: =Score!F18 -> 0
B128: þ | C128: Solar thermal equipment standards exist
B129: þ | C129: Domestic solar thermal testing facilities are available
B130: þ | C130: Solar thermal product national certification has been introduced
B131: þ | C131: Solar thermal products regional or international certification is introduced
B133: þ | C133: 4d. Installer Certification | N133: =Score!F19 -> 0
B135: þ | C135: 4e. Industry Association | N135: =Score!F20 -> 0
B137: TechScope Summary Report | G137: - 3 - | L137: Date Prepared: | M137: =TODAY() -> 2015-11-09
B139: Techscope Report | K139: Country:
B140: Solar Thermal Market Analysis | K140: =K95 -> 0
B142: SUMMARY OF RESULTS
B145: Parameter | C145: Parameter Weight | E145: Indicator Weight | G145: Indicator | L145: Raw Score | N145: Weighted Score
B146: I. Solar Water Heating Support Framework | C146: =Score!C3 -> 0.29 | E146: =Score!D3 -> 0.05 | G146: =Score!E3 -> SWH Targets | L146: =Score!F3 -> 0 | N146: =Score!G3 -> 0
E147: =Score!D4 -> 0.08 | G147: =Score!E4 -> Financial Incentives for System Installation | L147: =Score!F4 -> 0 | N147: =Score!G4 -> 0
E148: =Score!D5 -> 0.07 | G148: =Score!E5 -> SWH Loan Programs | L148: =Score!F5 -> 0 | N148: =Score!G5 -> 0
E149: =Score!D6 -> 0.05 | G149: =Score!E6 -> Building Mandates | L149: =Score!F6 -> 0 | N149: =Score!G6 -> 0
E150: =Score!D7 -> 0.04 | G150: =Score!E7 -> Outreach Campaigns | L150: =Score!F7 -> 0 | N150: =Score!G7 -> 0
B151: II. National Conditions | C151: =Score!C8 -> 0.3 | E151: =Score!D8 -> 0.05 | G151: =Score!E8 -> Insolation | L151: =Score!F8 ->  | N151: =Score!G8 -> 
E152: =Score!D9 -> 0.04 | G152: =Score!E9 -> SWH Market Penetration | L152: =Score!F9 -> 0 | N152: =Score!G9 -> 0
E153: =Score!D10 -> 0.05 | G153: =Score!E10 -> Residential Energy Consumption Growth | L153: =Score!F10 ->  | N153: =Score!G10 -> 
E154: =Score!D11 -> 0.04 | G154: =Score!E11 -> SWH Market Growth | L154: =Score!F11 ->  | N154: =Score!G11 -> 
E155: =Score!D12 -> 0.07 | G155: =Score!E12 -> SWH Competitiveness: Payback Period | L155: =Score!F12 -> 0 | N155: =Score!G12 -> 0
E156: =Score!D13 -> 0.05 | G156: =Score!E13 -> SWH Competitiveness: Heating Fuel Subsidy | L156: =Score!F13 -> 5 | N156: =Score!G13 -> 0.25
B157: III. Financing | C157: =Score!C14 -> 0.2 | E157: =Score!D14 -> 0.05 | G157: =Score!E14 -> Country Credit Rating | L157: =Score!F14 ->  | N157: =Score!G14 -> 
E158: =Score!D15 -> 0.15 | G158: =Score!E15 -> Access to Finance | L158: =Score!F15 -> 0 | N158: =Score!G15 -> 0
B159: IV. Business Climate | C159: =Score!C16 -> 0.21 | E159: =Score!D16 -> 0.05 | G159: =Score!E16 -> Doing Business Index | L159: =Score!F16 -> 0 | N159: =Score!G16 -> 0
E160: =Score!D17 -> 0.03 | G160: =Score!E17 -> Manufacturing Capacity | L160: =Score!F17 ->  | N160: =Score!G17 -> 
E161: =Score!D18 -> 0.05 | G161: =Score!E18 -> Product Standards and Certification | L161: =Score!F18 -> 0 | N161: =Score!G18 -> 0
E162: =Score!D19 -> 0.04 | G162: =Score!E19 -> Installer Certification | L162: =Score!F19 -> 0 | N162: =Score!G19 -> 0
E163: =Score!D20 -> 0.04 | G163: =Score!E20 -> Industry Association | L163: =Score!F20 -> 0 | N163: =Score!G20 -> 0
L164: =Score!F21 -> 5 | N164: =Score!G21 -> 0
M166: Overall Score | N166: =Score!G23 -> 
B168: Assessment of Overall Strength of Market
B176: Explanation of Scores
B178: Score of 0-2: SWH enabling environment is “emerging” and could likely benefit from additional support to accelerate SWH market growth.
B179: Score of 2-3: SWH enabling environment is “good” with a SWH market positioned for increased growth.
B180: Score of 3-4: SWH enabling environments are considered to be “strong” and are likely ready to attract investment.
B181: Score of 4-5: SWH conditions are “very strong” – policy, market, financial, business conditions are aligned to support SWH and market growth is likely to be rapid.
B185: TechScope Summary Report | G185: - 4 - | L185: Date Prepared: | M185: =TODAY() -> 2015-11-09

Sheet Country Conversion&Calculation (hidden)
A1: LEBANON
A2: SWH Market
A3: Growth Rate | B3: -% to 0% | C3: 1% to 5% | D3: 6% to 10% | E3: 11% to 15% | F3: 16% to 20% | G3: 20% or greater
A4: Score | B4: 0 | C4: 1 | D4: 2 | E4: 3 | F4: 4 | G4: 5
A7: SWH Market
A8: Growth Rate | B8: Score
A9: -% to 0% | B9: 0
A10: 1% to 5% | B10: 1
A11: 6% to 10% | B11: 2
A12: 11% to 15% | B12: 3
A13: 16% to 20% | B13: 4
A14: 20% or greater | B14: 5
A17: =#REF! -> 
A18: Conversion multiplier for BTU to Mtoe | B18: 2.521902169e-14 | C18: http://www.unitjuggler.com/convert-energy-from-Btu-to-Mtoe.html
B19: unit | C19: 2005 | D19: 2006 | E19: 2007 | F19: 2008 | G19: 2009 | H19: 2010
A20: Total Primary Energy Production | B20: BTU | D20: =6.82*(10^12) -> 6820000000000 | E20: =5.7*(10^12) -> 5700000000000 | F20: =3.6*(10^12) -> 3600000000000 | G20: =6*(10^12) -> 6000000000000 | H20: =8*(10^12) -> 8000000000000
A21: Total Primary Energy Consumption | B21: BTU | C21: =2.19*(10^14) -> 219000000000000 | D21: =1.94*(10^14) -> 194000000000000 | E21: =1.79*(10^14) -> 179000000000000 | F21: =1.82*(10^14) -> 182000000000000 | G21: =2.83*(10^14) -> 283000000000000 | H21: =2.76*(10^14) -> 2.76e+14
B23: =#REF! ->  | C23: 2005 | D23: 2006 | E23: =#REF! ->  | F23: =#REF! ->  | G23: =#REF! ->  | H23: =#REF! -> 
A24: =#REF! ->  | B24: =#REF! ->  | D24: =D20*B18 -> 0.1719937279 | E24: =#REF! ->  | F24: =#REF! ->  | G24: =#REF! ->  | H24: =#REF! -> 
A25: =#REF! ->  | B25: =#REF! ->  | C25: =C21*B18 -> 5.522965749 | D25: =D21*B18 -> 4.892490207 | E25: =#REF! ->  | F25: =#REF! ->  | G25: =#REF! ->  | H25: =#REF! -> 
A27: Growth in Energy Demand | B27: unit | C27: 2005 | D27: 2006 | E27: 2007 | F27: 2008 | G27: 2009 | H27: 2010
A28: Total Primary Energy Consumption | B28: Mtoe | C28: =C21*B18 -> 5.522965749 | D28: =D25 -> 4.892490207 | E28: =E25 ->  | F28: =F25 ->  | G28: =G25 ->  | H28: =H25 -> 
A29: Growth | D29: =((D28-C28)/C28) -> -0.1141552511 | E29: =((E28-D28)/D28) ->  | F29: =((F28-E28)/E28) ->  | G29: =((G28-F28)/F28) ->  | H29: =((H28-G28)/G28) -> 
A30: Average Growth Rate | B30: % | C30: =SUM(D29:H29)/(5) -> 
A32: =#REF! ->  | B32: =#REF! ->  | C32: 2006 | D32: =#REF! ->  | E32: =#REF! ->  | F32: =#REF! ->  | G32: =#REF! ->  | H32: =#REF! -> 
A33: =#REF! ->  | B33: =#REF! ->  | C33: =(114400/4097457)*1000 -> 27.91975608 | D33: =#REF! ->  | E33: =#REF! ->  | F33: =#REF! ->  | G33: =#REF! ->  | H33: =#REF! -> 
A34: =#REF! ->  | B34: =#REF! ->  | D34: =#REF! ->  | E34: =#REF! ->  | F34: =#REF! ->  | G34: =#REF! ->  | H34: =#REF! -> 
A35: Average Growth Rate | B35: % | C35: =SUM(D34:H34)/5 -> 
A37: Percent of Cumulitive SWH Capacity by Sector
A38: Residential / individual systems | B38: 0.8434215389
A39: Residential - Multi-family | B39: 0.09537121833
A40: Industry | B40: 0.03999935734
A41: Service sector (tourism,hospitals, etc.), public buildings | B41: 0.02120788548
A43: INDIA
A45: SWH Market
A46: Growth Rate | B46: -% to 0% | C46: 1% to 5% | D46: 6% to 10% | E46: 11% to 15% | F46: 16% to 20% | G46: 20% or greater
A47: Score | B47: 0 | C47: 1 | D47: 2 | E47: 3 | F47: 4 | G47: 5
A50: SWH Market
A51: Growth Rate | B51: Score
A52: -% to 0% | B52: 0
A53: 1% to 5% | B53: 1
A54: 6% to 10% | B54: 2
A55: 11% to 15% | B55: 3
A56: 16% to 20% | B56: 4
A57: 20% or greater | B57: 5
E58: To tal ca pac ity of glazed flat-plate and evac u ated tube col lec tors at the end
A59: =#REF! ->  | E59: of 2006
A61: Total Capacity of glazed and flat-plate and evacuated tube collectors
A62: Unit | B62: 2006 | C62: 2007 | D62: 2008 | E62: 2009 | F62: 2010 | G62: 2011
A63: MW th | B63: 1050 | C63: 1178.1 | D63: 1771.8 | E63: 2156.8 | F63: 2779 | G63: 3347
A65: Total Capacity of glazed and flat-plate and evacuated tube collectors in operation at end of 2006 in KWth per 1000 inhabitants
B66: 2007 | C66: 2008 | D66: 2009 | E66: 2010 | F66: 2011
A67: KW th/1000 inhabitants | B67: 1.8 | C67: 1.6 | D67: 1.9 | E67: 2.4 | F67: 2.8
A68: Growth | C68: =(C67-B67)/B67 -> -0.1111111111 | D68: =(D67-C67)/C67 -> 0.1875 | E68: =(E67-D67)/D67 -> 0.2631578947 | F68: =(F67-E67)/E67 -> 0.1666666667
A69: Average Growth Rate | B69: =SUM(C68:F68)/4 -> 0.1265533626
A71: SWH market penetration Indicator Scoring Methodology (KWth/1000 people)
A72: Unit | B72: Greece | C72: Lithuania | D72: Score
A73: KWth/1000 | B73: 268.2 | C73: 0.8 | D73: =F67/(B73-C73)*5 -> 0.05235602094
A76: Conversion multiplier for quad BTU to Mtoe | B76: 25.21902169 | C76: http://www.unitjuggler.com/convert-energy-from-Btu-to-Mtoe.html
B77: unit | C77: 2005 | D77: 2006 | E77: 2007 | F77: 2008 | G77: 2009 | H77: 2010 | I77: 2011
A78: Total Primary Energy Production | B78: quad BTU | E78: 13.02888 | F78: 13.5655 | G78: 14.56757 | H78: 15.29438 | I78: 16.00234
A79: Total Primary Energy Consumption | B79: quad BTU | E79: 18.81378 | F79: 19.90302 | G79: 21.41704 | H79: 21.9198 | I79: 23.61068
B81: unit | C81: 2005 | D81: 2006 | E81: 2007 | F81: 2008 | G81: 2009 | H81: 2010 | I81: 2011
A82: Total Primary Energy Production | B82: Mtoe | D82: =D78*B76 -> 0 | E82: =E78*$B76 -> 328.5756073 | F82: =F78*$B76 -> 342.1086387 | G82: =G78*$B76 -> 367.3798638 | H82: =H78*$B76 -> 385.7093009 | I82: =I78*$B76 -> 403.5633595
A83: Total Primary Energy Consumption | B83: Mtoe | C83: =C79*B76 -> 0 | D83: =D79*B76 -> 0 | E83: =E79*$B76 -> 474.4651258 | F83: =F79*$B76 -> 501.934693 | G83: 540.1167962 | H83: 552.7959116 | I83: 595.438251
A85: Growth in Energy Demand | B85: unit | C85: 2005 | D85: 2006 | E85: 2007 | F85: 2008 | G85: 2009 | H85: 2010 | I85: 2011
A86: Total Primary Energy Consumption | B86: Mtoe | C86: =C79*B76 -> 0 | D86: =D83 -> 0 | E86: 474.4651258 | F86: 501.934693 | G86: 540.1167962 | H86: 552.7959116 | I86: 595.438251
A87: Growth | F87: =((F86-E86)/E86) -> 0.05789586144 | G87: =((G86-F86)/F86) -> 0.07606986276 | H87: =((H86-G86)/G86) -> 0.02347476589 | I87: =((I86-H86)/H86) -> 0.07713938996
A88: Average Growth Rate | B88: % | C88: =SUM(F87:I87)/(4) -> 0.05864497001
A90: Percent of Cumulitive SWH Capacity by Sector
A91: Residential / individual systems
A92: Residential - Multi-family
A93: Industry
A94: Service sector (tourism,hospitals, etc.), public buildings
A96: Flate Plate Collector, LCOE
A97: Sl No | B97: Capacity (lpd) | C97: Collector Area (Sq.m) | D97: Benchmark Cost (Rs.) | E97: Eligible subsidy
E99: All type of users in General Category States & Commercial users in Special Category States | F99: Domestic and Institutional users in Special Category States
A100: 2 | B100: 200 | C100: 4 | D100: 48,000 -52,000 | E100: 13200 | F100: 26400
A102: Currency exchange rate Rs. 1 = .0180 USD | B102: Rs. 1 = | C102: 0.018
A103: http://www.oanda.com/currency/historical-rates/ | D103: July 1, 2012 - Aug 27, 2013 Avg
A105: FPC, 200 lpd | B105: Avg Benchmark Cost | C105: Eligible Subsidy | D105: 30% of benchmark cost
A106: Rupee | B106: =SUM(48000,52000)/2 -> 50000 | C106: =E100 -> 13200 | D106: =B106*0.3 -> 15000
A107: USD | B107: =B106*C102 -> 900 | C107: =C106*C102 -> 237.6 | D107: =D106*C102 -> 270
A109: Collector Type | B109: MWth | C109: % | F109: http://www.dartmouth.edu/~neudc2012/docs/paper_292.pdf
A110: FPC | B110: 2995.4 | C110: =B110/B112 -> 0.8950576705 | E110: cost of domestic electricity | F110: http://powermin.nic.in/JSP_SERVLETS/internal.jsp
A111: ETC | B111: 351.2 | C111: =B111/B112 -> 0.1049423295 | F111: http://www.bijlibachao.com/Historical-Tariff/domestic-lt-tariff-slabs-and-rates-for-all-states-in-india-in-2012.html
A112: Total | B112: =SUM(B110:B111) -> 3346.6 | C112: =SUM(C110:C111) -> 1 | F112: http://www.bijlibachao.com/News/domestic-lt-tariff-slabs-and-rates-for-all-states-in-india-in-2013.html
F113: http://publicfinance.in/?page_id=5818
A114: Access to Credit
A115: Distance to Frontier Ranking for Getting Credit | B115: 81.3 | C115: http://www.doingbusiness.org/data/distance-to-frontier
A117: Average lending interst rates to the private sector (2012)
A118: 0.106 | B118: http://data.worldbank.org/indicator/FR.INR.LEND
A120: Credit Ratings | B120: http://www.tradingeconomics.com/india/rating
A121: S&P Rating | C121: Moody's rating | E121: Fitch Rating | G121: TE Rating
A122: BBB- | B122: NEGATIVE | C122: Baa3 | D122: STABLE | E122: BBB- | F122: STABLE | G122: 47.12 | H122: NEGATIVE
A123: Standard & Poor's credit rating for India stands at BBB-. Moody's rating for India sovereign debt is Baa3. Fitch's credit rating for India is BBB-. In general, a credit rating is used by sovereign wealth funds, pension funds and other investors to gauge the credit worthiness of India thus having a big impact on the country's borrowing costs. This page contains - India | Credit Rating - actual values, historical data, forecast, chart, statistics, economic calendar and news. 8/28/2013
A124: Country | B124: Moody's | C124: S&P | D124: Score
A125: India | B125: Baa3 | C125: BBB- | D125: 3.5 | Q125: Country | R125: Moody's | S125: S&P | T125: Score
A127: Doing Business Ranking 2012
A128: Country | B128: Ranking
A129: India | B129: 132 | D129: http://www.doingbusiness.org/~/media/GIAWB/Doing%20Business/Documents/Annual-Reports/English/DB12-FullReport.pdf | Q129: India | R129: Baa3 | S129: BBB-
A130: CHILE
A133: SWH Market
A134: Growth Rate | B134: -% to 0% | C134: 1% to 5% | D134: 6% to 10% | E134: 11% to 15% | F134: 16% to 20% | G134: 20% or greater
A135: Score | B135: 0 | C135: 1 | D135: 2 | E135: 3 | F135: 4 | G135: 5
A138: SWH Market
A139: Growth Rate | B139: Score
A140: -% to 0% | B140: 0
A141: 1% to 5% | B141: 1
A142: 6% to 10% | B142: 2
A143: 11% to 15% | B143: 3
A144: 16% to 20% | B144: 4
A145: 20% or greater | B145: 5
A147: =#REF! -> 
A148: Conversion multiplier for quad BTU to Mtoe | B148: 25.21902169 | C148: http://www.unitjuggler.com/convert-energy-from-Btu-to-Mtoe.html
B149: unit | C149: 2005 | D149: 2006 | E149: 2007 | F149: 2008 | G149: 2009 | H149: 2010 | I149: 2011
A150: Total Primary Energy Production | B150: quad BTU | E150: 0 | F150: 0 | G150: 0 | H150: 0 | I150: 0
A151: Total Primary Energy Consumption | B151: quad BTU | E151: 0 | F151: 0 | G151: 0 | H151: 0 | I151: 0
B153: unit | C153: 2005 | D153: 2006 | E153: 2007 | F153: 2008 | G153: 2009 | H153: 2010 | I153: 2011
A154: Total Primary Energy Production | B154: Mtoe | D154: =D150*B148 -> 0 | E154: =E150*$B148 -> 0 | F154: =F150*$B148 -> 0 | G154: =G150*$B148 -> 0 | H154: =H150*$B148 -> 0 | I154: =I150*$B148 -> 0
A155: Total Primary Energy Consumption | B155: Mtoe | C155: =C151*B148 -> 0 | D155: =D151*B148 -> 0 | E155: =E151*$B148 -> 0 | F155: =F151*$B148 -> 0 | G155: 0 | H155: 0 | I155: 0
A157: Growth in Energy Demand | B157: unit | C157: 2005 | D157: 2006 | E157: 2007 | F157: 2008 | G157: 2009 | H157: 2010 | I157: 2011
A158: Total Primary Energy Consumption | B158: Mtoe | C158: =C151*B148 -> 0 | D158: =D155 -> 0 | E158: 0 | F158: 0 | G158: 0 | H158: 0 | I158: 0
A159: Growth | F159: =((F158-E158)/E158) ->  | G159: =((G158-F158)/F158) ->  | H159: =((H158-G158)/G158) ->  | I159: =((I158-H158)/H158) -> 
A160: Average Growth Rate | B160: % | C160: =SUM(F159:I159)/(4) -> 
A162: Percent of Cumulitive SWH Capacity by Sector
A163: Residential / individual systems
A164: Residential - Multi-family
A165: Industry
A166: Service sector (tourism,hospitals, etc.), public buildings
A168: MEXICO
A170: SWH Market
A171: Growth Rate | B171: -% to 0% | C171: 1% to 5% | D171: 6% to 10% | E171: 11% to 15% | F171: 16% to 20% | G171: 20% or greater
A172: Score | B172: 0 | C172: 1 | D172: 2 | E172: 3 | F172: 4 | G172: 5
A175: SWH Market
A176: Growth Rate | B176: Score
A177: -% to 0% | B177: 0
A178: 1% to 5% | B178: 1
A179: 6% to 10% | B179: 2
A180: 11% to 15% | B180: 3
A181: 16% to 20% | B181: 4
A182: 20% or greater | B182: 5
A185: Conversion multiplier for quad BTU to Mtoe | B185: 25.21902169 | C185: http://www.unitjuggler.com/convert-energy-from-Btu-to-Mtoe.html
B186: unit | C186: 2005 | D186: 2006 | E186: 2007 | F186: 2008 | G186: 2009 | H186: 2010 | I186: 2011
A187: Total Primary Energy Production | B187: quad BTU | E187: 0 | F187: 0 | G187: 0 | H187: 0 | I187: 0
A188: Total Primary Energy Consumption | B188: quad BTU | E188: 0 | F188: 0 | G188: 0 | H188: 0 | I188: 0
B190: unit | C190: 2005 | D190: 2006 | E190: 2007 | F190: 2008 | G190: 2009 | H190: 2010 | I190: 2011
A191: Total Primary Energy Production | B191: Mtoe | D191: =D187*B185 -> 0 | E191: =E187*$B185 -> 0 | F191: =F187*$B185 -> 0 | G191: =G187*$B185 -> 0 | H191: =H187*$B185 -> 0 | I191: =I187*$B185 -> 0
A192: Total Primary Energy Consumption | B192: Mtoe | C192: =C188*B185 -> 0 | D192: =D188*B185 -> 0 | E192: =E188*$B185 -> 0 | F192: =F188*$B185 -> 0 | G192: 0 | H192: 0 | I192: 0
A194: Growth in Energy Demand | B194: unit | C194: 2005 | D194: 2006 | E194: 2007 | F194: 2008 | G194: 2009 | H194: 2010 | I194: 2011
A195: Total Primary Energy Consumption | B195: Mtoe | C195: =C188*B185 -> 0 | D195: =D192 -> 0 | E195: 0 | F195: 0 | G195: 0 | H195: 0 | I195: 0
A196: Growth | F196: =((F195-E195)/E195) ->  | G196: =((G195-F195)/F195) ->  | H196: =((H195-G195)/G195) ->  | I196: =((I195-H195)/H195) -> 
A197: Average Growth Rate | B197: % | C197: =SUM(F196:I196)/(4) -> 
A199: Percent of Cumulitive SWH Capacity by Sector
A200: Residential / individual systems
A201: Residential - Multi-family
A202: Industry
A203: Service sector (tourism,hospitals, etc.), public buildings
A205: ALBANIA
A207: SWH Market
A208: Growth Rate | B208: -% to 0% | C208: 1% to 5% | D208: 6% to 10% | E208: 11% to 15% | F208: 16% to 20% | G208: 20% or greater
A209: Score | B209: 0 | C209: 1 | D209: 2 | E209: 3 | F209: 4 | G209: 5
A212: SWH Market
A213: Growth Rate | B213: Score
A214: -% to 0% | B214: 0
A215: 1% to 5% | B215: 1
A216: 6% to 10% | B216: 2
A217: 11% to 15% | B217: 3
A218: 16% to 20% | B218: 4
A219: 20% or greater | B219: 5
A222: Conversion multiplier for quad BTU to Mtoe | B222: 25.21902169 | C222: http://www.unitjuggler.com/convert-energy-from-Btu-to-Mtoe.html
B223: unit | C223: 2005 | D223: 2006 | E223: 2007 | F223: 2008 | G223: 2009 | H223: 2010 | I223: 2011
A224: Total Primary Energy Production | B224: quad BTU | C224: 0.071 | D224: 0.06866 | E224: 0.04305 | F224: 0.05283 | G224: 0.06405 | H224: 0.09844 | I224: 0.07415
A225: Total Primary Energy Consumption | B225: quad BTU | C225: 0.121 | D225: 0.119 | E225: 0.103 | F225: 0.11 | G225: 0.115 | H225: 0.125 | I225: 0.106
B227: unit | C227: 2005 | D227: 2006 | E227: 2007 | F227: 2008 | G227: 2009 | H227: 2010 | I227: 2011
A228: Total Primary Energy Production | B228: Mtoe | C228: =C224*$B222 -> 1.79055054 | D228: =D224*$B222 -> 1.731538029 | E228: 1.085678884 | F228: 1.332320916 | G228: 1.615278339 | H228: 2.482560495 | I228: 1.869990458
A229: Total Primary Energy Consumption | B229: Mtoe | C229: =C225*B222 -> 3.051501624 | D229: =D225*B222 -> 3.001063581 | E229: =E225*$B222 -> 2.597559234 | F229: =F225*$B222 -> 2.774092386 | G229: =G225*$B222 -> 2.900187494 | H229: =H225*$B222 -> 3.152377711 | I229: =I225*$B222 -> 2.673216299
A231: Growth in Energy Demand | B231: unit | C231: 2005 | D231: 2006 | E231: 2007 | F231: 2008 | G231: 2009 | H231: 2010 | I231: 2011
A232: Total Primary Energy Consumption | B232: Mtoe | C232: =C225*B222 -> 3.051501624 | D232: =D229 -> 3.001063581 | E232: 2.597559234 | F232: 2.774092386 | G232: 2.900187494 | H232: 3.152377711 | I232: 2.673216299 | L232: new-old/old
A233: Growth | E233: =(E232-D232)/(E232) -> -0.1553398058 | F233: =((F232-E232)/E232) -> 0.06796116505 | G233: =((G232-F232)/F232) -> 0.04545454545 | H233: =((H232-G232)/G232) -> 0.08695652174 | I233: =((I232-H232)/H232) -> -0.152
A234: Average Growth Rate | B234: % | C234: =SUM(E233:I233)/(5) -> -0.02139351472
A236: Percent of Cumulitive SWH Capacity by Sector
A237: Residential / individual systems
A238: Residential - Multi-family
A239: Industry
A240: Service sector (tourism,hospitals, etc.), public buildings
A242: Access to Credit
A243: Distance to Frontier Ranking for Getting Credit | B243: 81.3 | C243: http://www.doingbusiness.org/data/distance-to-frontier
A245: Average lending interst rates to the private sector
A246: 0.109 | B246: http://data.worldbank.org/indicator/FR.INR.LEND
A248: Credit Ratings | B248: http://www.tradingeconomics.com/albania/rating
A249: S&P Rating | C249: Moody's rating | E249: Fitch Rating | G249: TE Rating
A250: B1 | B250: STABLE | C250: B1 | D250: STABLE | G250: 35 | H250: STABLE
A251: Standard & Poor's credit rating for Albania stands at B1. Moody's rating for Albania sovereign debt is B1. In general, a credit rating is used by sovereign wealth funds, pension funds and other investors to gauge the credit worthiness of Albania thus having a big impact on the country's borrowing costs. This page contains - Albania | Credit Rating - actual values, historical data, forecast, chart, statistics, economic calendar and news. 8/28/2013
A253: Country | B253: Moody's | C253: S&P | D253: Score
A254: Albania | B254: B1 | C254: B1 | D254: 2.5
A256: Doing Business Ranking 2012
A257: Country | B257: Ranking
A258: Albania | B258: 82 | D258: http://www.doingbusiness.org/~/media/GIAWB/Doing%20Business/Documents/Annual-Reports/English/DB12-FullReport.pdf
A260: Total Capacity of glazed and flat-plate and evacuated tube collectors
... 14 more rows

Sheet Currency dropdown (hidden)
B1: Please select currency | E1: Please select currency | H1: Please select tax option
B2: Cost in € | E2: in € | H2: VAT inc.
B3: Cost in $ | E3: in $ | H3: VAT exc.
B4: Cost in local currency | E4: in local currency

Sheet GHG Calculator Cover
C5: TechScope
B6: Greenhouse Gas Calculator for Residential Solar Water Heating
E7: Version 1.0
B10: The Greenhouse Gas Calculator for Residential Solar Water Heating ("GHG Calculator") is an optional module integrated into the TechScope Tool. It is not necessary to complete in order to generate a TechScope score for a country; however, the GHG Calculator provides complementary functions designed to help policymakers quantify the GHG emissions reductions associated with increased development of Solar Water Heating (SWH) systems. The GHG Calculator can also be used to establish SWH targets designed to achieve specific GHG emissions reductions.
F13: PROCEED TO USER MANUAL u
F15: PROCEED TO TOOL u

Sheet User Manual
A1: Greenhouse Gas Calculator for Residential Solar Water Heating
A2: Integrated User Manual
E4: PROCEED TO TOOL u
A6: 1 | B6: Introduction
B8: The Greenhouse Gas (GHG) Calculator is an optional module integrated into the TechScope Tool. It is not necessary to complete in order to generate a TechScope score for a country; however, the GHG Calculator provides complementary functions designed to help policymakers quantify the GHG emissions reductions associated with increased development of Solar Water Heating (SWH) systems. As discussed below, the GHG Calculator can also be used to establish SWH targets in order to achieve desired GHG emissions reductions.
A9: 2 | B9: Intended Uses
B10: The tool is designed for simplicity, flexibility, and scalability. It estimates the emissions avoided by installing SWH systems using a few simple inputs and assumptions on the type and quantity of installed SWH system (under "Input Sheet I") and the type and ratio of fossil fuel-driven hot water heating systems that are replaced or whose use is reduced by the SWH systems ("Input Sheet II"). As such, it is possible to use the GHG Calculator for a variety of purposes, including:
B11: - Estimating the GHG emissions avoided by currently installed SWH systems in a country or region
B12: - Estimating the potential GHG emissions reductions from a single project
B13: - Estimating the potential GHG emissions reductions from a policy or programme based on assumptions about the amount of SWH installed as a result
B14: - Estimating the potential GHG emissions reductions from organic growth of the SWH market
B15: - Setting a target quantity of SWH systems needed to reach a desired GHG emissions reduction target
B17: Note that the tool is intended for estimating GHG emissions avoided by installing SWH for the residential sector. Users may the tool useful for the commercial sector as well, but it is not intended for industrial sector emissions calculations.
B18: To accommodate all of these potential uses, the model was designed to minimize required inputs and avoid dependency on market data that may not be available in all regions.
A20: 3 | B20: Using the GHG Calculator
B22: This section walks the user through entering required data into the GHG Calculator. Note that detailed context-specific help is available in the GHG Calculator module itself by hovering the mouse over the information reference boxes marked with an 'i". Comment boxes will appear with more detailed information on each input or calculation.
B24: Like the rest of the TechScope Score, the GHG Calculator tool requires users to enter data for the country or region in question and inputs (or assumptions) about the technology installed or replaced. To support data collection, when possible, potential data sources are integrated into the model or referenced in context help. In some instances, the user is responsible for finding the appropriate information to answer the question associated with the indicator.
B25: Throughout the input sheets, color-coded shading is used to indicate which cells will accept data entry and which are required inputs. Note that input cells are differentiated between optional and mandatory.
B26: Format | C26: Meaning | D26: User modification allowed?
B27: i | C27: Context Help | D27: Not modifiable by user
B28: Calculation | C28: Calculated data | D28: Not modifiable by user
B29: Data | C29: Input field (optional) | D29: Modifiable by user
B30: Data | C30: Input field (mandatory) | D30: Modifiable by user
B31: Text | C31: Data label | D31: Not modifiable by user
B32: Calculation | C32: Intermediate or final result | D32: Not modifiable by user
B34: The following section provides the user instructions on how to enter the data for input sheet I and input sheet II.
B35: Note that users must fully complete both Input Sheets to calculate GHG emissions.
A37: 3.1 | B37: INPUT SHEET I
B39: In this section, the user defines the scale of SWH uptake for which associated GHG reductions are desired. This could be used to estimate GHG reductions from a single or set of installed or hypothetical projects or to test the potential GHG impacts of a hypothetical SWH program or policy based on assumed levels of new systems that would be installed.
B41: SECTION 1-3
B42: Section 1. Preferred Units of Measurement: The model is designed to accommodate commonly used units of measurement for SWH system size, heat output, and greenhouse gas emissions. Default units are provided but the user may change any of the desired units. This will set the model up to receive inputs and present outputs in the units selected.
B44: Section 2. Solar Resource for the Country or Region: Use the link provided or another data source to enter the average annual solar insolation resource for the country or region being evaluated. Note: use average ANNUAL values, which generally range between 1,000 – 2,500 kWh/m2/year. Data obtained in DAILY values (kWh/m2/year) may be converted to annual by multiplying by 365.
B45: Section 3. Type of Solar Water Heating System: This input is optional. The user may differentiate up to 4 different types of SWH systems. Differentiation allows different volumes and system assumptions to be made for different categories. For example, users may wish to differentiate between Glazed and Unglazed systems, entering different collector yield assumptions (Section 4) or different quantities (Section 6) for each.
B46: SECTION 4-6: Refers to characteristics of SWH collectors and systems. While characteristics of individual SWH systems may vary, the model requires the user to enter the “average,” “typical” or “aggregate” conditions so that country-or region-wide analysis may be performed. Where possible, default assumptions are provided but users should use the best available data and assumptions for the country or region.
B47: Section 4. Average Collector yield: Collector yield is measured as the % of solar insolation that is converted to heat by the collector. Note that losses in piping or hot water storage may be accounted for in Section 5 below. The model allows the user to use default assumptions calculated by the model based on IEA-SHC data (Option 1) or enter their own average collector yield factors for SWH systems installed (Option 2). The methodology and assumptions for Option 1 are detailed below. Instructions for each option are provided in the context help for Section 4.
B48: Note on Assumptions and Methodology: Option 1 provides a single collector yield assumption for the country or region identified by the user in Input 4B. This value will not be affected by any differentiation or categorization the user may have identified in Section 3. If Option 1 is used, the model will calculate an appropriate collector yield using: A. Total collector yield for the country in GWh/yr (Source: IEA-SHC's Solar Heating Worldwide 2015 Edition, Table 5, page 30) B. Total collector area for the country in m^2 (same source) C. Solar insolation in kWh/m2/yr (provided by the user in Section 2) Collector Yield = ( [A]*1000000 / [B] ) / [C]
B49: Section 5. Average Piping and Storage Losses: Efficiency of the SWH collector is identified in Section 4; however, useable heat may be further reduced by losses in the water piping and storage system. Section 5 allows the user to enter the percentage of collector output assumed to be lost due to pipe line and storage tank losses. These are expressed as a percent of collector yield. Users should use the best available data or assumptions for the country or region being evaluated. Default values are provided based on assumptions used by the European Solar Thermal Industry Federation. See "Objective methodology for simple calculation of the energy delivery of (small) Solar Thermal systems" available at
B50: http://www.estif.org/fileadmin/estif/content/policies/downloads/Simple_Calculation.pdf.
B51: Section 6. Amount of solar water heating systems installed: Enter the total quantity of SWH for which associated GHG emissions reductions should be calculated. These volumes should be expressed either as square meters of collectors (m^2) or kilowatts of installed capacity (kWth), depending on the unit of measurement selected in Section 1. Note that the model uses a conversion factor of 0.7 kWth per m2 to derive the nominal capacity from the area of installed collectors if total collector area is given in m2 (see assumptions and methodology below). Note that there is no “correct” value for this input. It will depend on the user’s intentions in using this model. For more information on potential uses, see “Intended Uses” in Part 2 of the User Manual above.
B52: Note on assumptions & methodology: The IEA Solar Heating and Cooling Programme has developed a methodology to convert installed collector area to solar thermal capacity. It was established that a factor of 0.7 kWth per m2 should be used to derive the nominal capacity from the area of installed collectors. See IEA Solar Heating and Cooling Programme. (2004). Recommendation: Converting solar thermal collector area into installed capacity (M2 to kWth). Cedar, MI, USA.
B53: Section 7. Total output of solar water heating system: This section uses assumptions about the heating fuels that are replaced by SWH systems and calculates the avoided greenhouse gas emissions by type of conventional heating fuel that is avoided/reduced. Separate methods and data sources are required for replacement of electric hot water systems due to the variation across countries and regions in carbon intensity of grid electricity.
A54: 3.2 | B54: INPUT SHEET II
B56: In this section the user provides information on the fossil fuel energy that will be replaced by the SWH systems. Using this data, the model calculates the GHG emissions of avoided fossil fuel systems.
B57: Section 8. Type of Fossil Fuel Used that is Avoided by SWH Systems: Select up to five types of fossil fuel assumed to be used in fossil fuel heating systems whose use is avoided or reduced by SWH systems. The model provides a number of fuel types relevant to domestic and commercial hot water heating for which IPCC emissions factor data is available. For each type of fossil fuel energy selected, provide an estimation or assumption of the percentage of total output of new SWH systems (Input 8B) that will replace each of the conventional sources. For example, if you expect that 50% of the output from new SWH systems will offset natural gas-powered conventional systems, select "Natural Gas" from Input 8A and enter "50%" in Input 8B in the corresponding row.
B58: Section 9. Efficiency of Avoided or Replaced Fossil Fuel Systems: The average efficiency of typical conventional hot water systems in the country or region should be entered by the user here.
B59: Section 10. Total Primary Energy of Avoided Fossil Fuel Consumption: The model calculates the amount of fuel avoided, expressed in kWh or MMBtu of primary energy, depending on the unit of measurement selected in Input 1 on Input Sheet I.
B60: Section 11. Effective CO2e Emissions Factors for Fossil Fuels: Emissions factors are automatically populated using IPCC and EIA data sets. Note that for consistency with original data sources, the model shows these emissions factors in "lbs CO2e/kWh" regardless of the units of measurement selected in Section 1 on Input Sheet I. If any of the Displaced Fossil Fuel Types selected in Section 8 are "Electricity", select your country or region from Section 10A. Otherwise country selection is not required. If the desired country is not listed, select the best available proxy country or region.
B61: Note on Assumptions & Methodology: For all fossil fuels except electricity: Global values are used representing typical emissions associated with the combustion of the fossil fuel in residential settings. Source: IPCC (2006). Guidelines for National Greenhouse Gas Inventories. Chapter 2: Stationary Combustion. For electricity: Country-level average grid electricity emissions factors are used, drawing from EIA. (2011) CO2 Emissions From Fuel Combustion Highlights. http://www.iea.org/media/statistics/co2highlights.pdf
B62: Section 12. Total CO2e Emissions Reduced: The model calculates the total emission reductions in carbon dioxide equivalent (CO2e) by multiplying the CO2e emissions factor from Section 11 by the total primary energy in Section 10.
B64: Note: the results are also presented in a print-ready and graphically formatted report on the "GHG Report" sheet.
A66: 3.3 | B66: OPTIONAL: SWH GOAL MODULE
B68: This is an optional module that allows the user to run the model in a different way. Completing just Input Sheets I and II allows the user to view resulting GHG emissions reductions obtained by defining the scale of SWH installations. The SWH Goal Module does the opposite: it allows the user to define the desired GHG reductions and have the model determine the required level of SWH installations needed to meet it.
B69: Section A. SWH Output and Avoided Fossil Fuel Emissions Inputs: To use the SWH Goal Module it is necessary to complete all sections of the Input Sheets except Section 6 on Input Sheet I. The SWH Goal Module utilizes Input Sheets I and II by automatically entering the quantity of SWH in Input 6 needed to reach the GHG Goal specified in Section C below.
B70: Section B. Relative Portion of Different Types of SWH System: If only one type of SWH system is identified by the user in Section 3 on Input Sheet I, enter "100%" in the first blue cell below. Otherwise, enter the share each type of SWH system is expected to comprise, ensuring that the total adds to "100%". For example, if SWH systems are differentiated between "Glazed" and "Unglazed" in Section 3, enter the assumed % of each type in Section B. The model will find the total quantity of SWH needed to reach the GHG Goal identified, but this entry is required in order for the user to specify how that total is divided across different types of SWH systems that have been differentiated by the user.
B71: Section C. GHG Reduction Goal: Enter the GHG reduction goal for which you want the model to find the quantity of SWH systems that would be needed to reach it. Enter GHG reduction goal in the units shown in the grey cell. To enter in a different unit, change the selection in Input 1 on Input Sheet I.
B72: Section D. Calculate SWH Goal: The user clicks the "Calculate SWH Goal" button to receive the total quantity of SWH required to reach the GHG reduction goal outlined in Section C. It's important to note that for the button to work macros must be enabled in Excel. Macros may be enabled in Excel help (see Macro Troubleshooting below). Note, there will be a brief period where Excel will perform functions automatically. The duration will depend on the speed of your computer and should generally last between 5 and 20 seconds. Do not press any keys while this automated process is running. Once completed, the macro will return your cursor to the "SWH Goal Module" tab with results selected.
B73: Macro troubleshooting: The model use a simple program ("macro") to calculate FIT rates based on the inputs. To use this feature, Macros must be enabled in Excel:
B74: 1. Ensure the model is saved in a macro-enabled format ( it will have a ".xlsm" extension in the file name). If it is not, choose "Save As" and select the macro-enabled format from the list. Then close and re-open Excel.
B75: 2. Ensure macros are enabled in Excel options. Depending on the version of Excel you are using, this option can generally be found by clicking the Office icon (Excel 2007) or "File" menu (Excel 2010 and higher) in the top left of the screen, selecting "Options" or "Excel Options", then "Trust Center", "Trust Center Settings", "Macro Settings" and selecting the "Enable all macros" option. Save, close, and re-open the file if needed. For more information, please refer to Microsoft Excel Help for "enabling macros."
B76: Section E. Total Quantity and Output of SWH Needed to Reach SWH Goal: The total quantity of SWH (and output of those systems) required to reach the GHG goal specified in Section C above will be identified in this section once the "Calculate SWH Goal" button has been activated. Note that results will also be populated in the "GHG Report" sheet.
A78: 4 | B78: Viewing and printing results
B80: Results can be viewed in a simple summary sheet that provides the GHG emission reductions as a result of the SWH installations in table and graphic form. The information provided includes the output of solar water heating systems installed, the total greenhouse gas reductions in kg CO2e/yr and in the form of useful equivalencies such as passenger vehicles on the road, barrels of oil burned and tonnes of coal burned (note: the avoided emissions is equivalent to any, but not all, of these three equivalencies), and the GHG reductions avoided by each fossil fuel type. The report is designed to serve as a printable or publishable summary document of the data.
B81: Note that mandatory data (blue cells) in Input Sheets I and II is required to calculate the greenhouse gas emission reductions. Missing data means the greenhouse gas emission reductions cannot be calculated and errors will appear in this report.

Sheet Input Sheet I
A1: ='User Manual'!A1:F1 -> Greenhouse Gas Calculator for Residential Solar Water Heating | J1: Legend
A2: Input Sheet I: Calculating the Output of SWH Systems | J2: Context Help | K2: Input field (optional)
J3: Calculated | K3: Input field (mandatory)
A4: Enter Country Name: | J4: Data Label | K4: Intermediate or final result
C6: t RETURN TO USER MANUAL
A9: 1 | B9: ? | C9: Preferred Units of Measurement
C11: 1A. SWH System Size | F11: 1B. Heat Output | I11: 1C. Greenhouse Gas Emissions
C12: Meters squared of collector area (m2) | F12: Kilowatt Hours Therm (kWhth) | I12: Metric (kg)
A14: 2 | B14: ? | C14: Solar Resource of the Country or Region
C16: 2A. Data Description | D16: 2B. Data Source | E16: 2C. Unit | F16: 2D. Value
C17: 2A. Solar Insolation | D17: Clean Energy Solutions Center’s Global RE Opportunity Tool | E17: Average Annual Solar Resource (kWh/m2/year)
A19: 3 | B19: ? | C19: Type of Solar Water Heating Systems
C21: 3A. Type of SWH System(s)
A28: 4 | B28: ? | C28: Average Collector Yield
C30: 4A. Choose Option to Use
C31: <select an option>
C33: OPTION 1: USE MODEL DEFAULTS
C35: 4B. Select your country or region:
C36: <select a country> | F36: OPTION 2: USER ENTERED DATA | N36: <select a country> | O36: Albania | P36: Australia | Q36: Austria | R36: Barbados | S36: Belgium | T36: Brazil | U36: Bulgaria | V36: Canada | W36: Chile | X36: China | Y36: Croatia | Z36: Cyprus | AA36: Czech Republic | AB36: Denmark | AC36: Estonia | AD36: Finland | AE36: France (mainland) | AF36: Germany | AG36: Greece | AH36: Hungary | AI36: India | AJ36: Ireland | AK36: Israel | AL36: Italy | AM36: Japan | AN36: Jordan | AO36: Korea, South | AP36: Latvia | AQ36: Lebanon | AR36: Lithuania | AS36: Luxembourg | AT36: Macedonia | AU36: Malta | AV36: Mauritius | AW36: Mexico | AX36: Morocco | AY36: Mozambique | AZ36: Namibia | BA36: Netherlands | BB36: New Zealand | BC36: Norway | BD36: Palestinian Territ. | BE36: Poland | BF36: Portugal | BG36: Romania | BH36: Russia | BI36: Slovakia | BJ36: Slovenia | BK36: South Africa | BL36: Spain | BM36: Sweden | BN36: Switzerland | BO36: Taiwan | BP36: Thailand | BQ36: Tunisia | BR36: Turkey | BS36: United Kingdom | BT36: United States | BU36: Uruguay | BV36: Zimbabwe | BW36: Avg of all other countries
C38: 4C. Type of SWH System(s) | D38: 4D. Average Collector Yield (%) | E38: OR | F38: 4E. Type of SWH System(s) | G38: 4F. Average Collector Yield (%)
C39: =IF(OR($C$36="<select a country>",LEFT($C$31,8)="Option 2"),"",$C23) ->  | D39: =IF(OR($C$36="<select a country>",NOT(LEFT($C$31,8)="Option 1")),"",SUMIF('Back End Data & Calcs'!$B:$B,'Input Sheet I'!$C$36,'Back End Data & Calcs'!$K:$K)) ->  | F39: =$C$23 -> 0 | I39: =IF(LEFT($C$31,8)="Option 1",D39,G39) -> 0
C40: =IF(OR($C$36="<select a country>",LEFT($C$31,8)="Option 2"),"",$C24) ->  | D40: =IF(OR($C$36="<select a country>",LEFT($C$31,8)="Option 2",ISBLANK(C24)),"",SUMIF('Back End Data & Calcs'!$B:$B,'Input Sheet I'!$C$36,'Back End Data & Calcs'!$K:$K)) ->  | F40: =$C$24 -> 0 | I40: =IF(LEFT($C$31,8)="Option 1",D40,G40) -> 0
D41: =IF(OR($C$36="<select a country>",LEFT($C$31,8)="Option 2",ISBLANK(C25)),"",SUMIF('Back End Data & Calcs'!$B:$B,'Input Sheet I'!$C$36,'Back End Data & Calcs'!$K:$K)) ->  | F41: =$C$25 -> 0 | I41: 0
D42: =IF(OR($C$36="<select a country>",LEFT($C$31,8)="Option 2",ISBLANK(C26)),"",SUMIF('Back End Data & Calcs'!$B:$B,'Input Sheet I'!$C$36,'Back End Data & Calcs'!$K:$K)) ->  | F42: =$C$26 -> 0 | I42: 0
A45: 5 | B45: ? | C45: Average Piping & Storage Losses
C47: 5A. Type of SWH System | D47: 5B. Assumed Average Pipe Losses | E47: 5C. Assumed Average Storage Tank Losses | F47: 5D. Total System Losses
C48: =C$23 -> 0 | D48: 0.1 | E48: 0.05 | F48: =D48+E48 -> 0.15
C49: =C$24 -> 0 | F49: =D49+E49 -> 0
C50: =C$25 -> 0 | F50: 0
C51: =C$26 -> 0 | F51: 0
A53: 6 | B53: ? | C53: Amount of Solar Water Heating Systems Installed
C55: 6A. Type of SWH System | D55: 6B. Total collector area | F55: Convert to m2
D56: =VLOOKUP($C$12,'Back End Data & Calcs'!$AW:$AX,2,FALSE) -> m2
C57: =C$23 -> 0 | F57: =IF($D$56='Back End Data & Calcs'!$AX$27,D57,D57*'Back End Data & Calcs'!$AY$28) -> 0
C58: =C$24 -> 0 | F58: =IF($D$56='Back End Data & Calcs'!$AX$27,D58,D58*'Back End Data & Calcs'!$AY$28) -> 0
C59: =C$25 -> 0 | F59: =IF($D$56='Back End Data & Calcs'!$AX$27,D59,D59*'Back End Data & Calcs'!$AY$28) -> 0
C60: =C$26 -> 0 | F60: =IF($D$56='Back End Data & Calcs'!$AX$27,D60,D60*'Back End Data & Calcs'!$AY$28) -> 0
C61: Total | D61: =SUM(D57:D60) -> 0 | F61: =IF($D$56='Back End Data & Calcs'!$AX$27,D61,D61*'Back End Data & Calcs'!$AY$28) -> 0
A63: 7 | B63: ? | C63: Total Output of Solar Water Heating Systems
C65: 7A. Type of SWH System | D65: 7B. System Output
D66: =VLOOKUP($F$12,'Back End Data & Calcs'!$AW:$AX,2,FALSE) -> kWhth/yr | F66: kWhth/yr
C67: =C$23 -> 0 | D67: =IF($D$66='Back End Data & Calcs'!$AX$31,F67,F67*'Back End Data & Calcs'!$AY$31) -> 0 | F67: =IF(OR(ISBLANK(F57),F57=0),0,$F$17*F57*I39*(1-F48)) -> 0
C68: =C$24 -> 0 | D68: =IF($D$66='Back End Data & Calcs'!$AX$31,F68,F68*'Back End Data & Calcs'!$AY$31) -> 0 | F68: =IF(OR(ISBLANK(F58),F58=0),0,$F$17*F58*I40*(1-F49)) -> 0
C69: =C$25 -> 0 | D69: =IF($D$66='Back End Data & Calcs'!$AX$31,F69,F69*'Back End Data & Calcs'!$AY$31) -> 0 | F69: 0 | L69: =IF(ISERROR(MATCH("Use IEA-SHC avg data",#REF!,0)),1,0) -> 1
C70: =C$26 -> 0 | D70: =IF($D$66='Back End Data & Calcs'!$AX$31,F70,F70*'Back End Data & Calcs'!$AY$31) -> 0 | F70: 0
C71: Total Output | D71: =SUM(D67:D70) -> 0 | F71: =SUM(F67:F70) -> 0
J75: PROCEED TO INPUT SHEET II u

Sheet Input Sheet II
A1: ='User Manual'!A1:F1 -> Greenhouse Gas Calculator for Residential Solar Water Heating | I1: Legend
A2: Input Sheet I: Calculating the Output of SWH Systems | I2: Context Help | J2: Input field (optional)
I3: Calculated | J3: Input field (mandatory)
A4: Country/Region Name: | D4: ='Country data'!C3 -> 0 | I4: Data Label | J4: Intermediate or final result
C6: t RETURN TO INPUT SHEET I
A9: 8 | B9: ? | C9: Type of Fossil Fuel Used that is Avoided by SWH Systems
C11: 8A. Displaced Fossil Fuel Type | D11: 8B. Percent of SWH Replacing Each Fossil Fuel Type
D12: (%)
D13: 1 | N13: <please select from list> | P13: Biodiesels | Q13: Biogasoline | R13: Charcoal | S13: Crude Oil | T13: Electricity | U13: Ethane | V13: Gas/Diesel Oil | W13: Liquefied Petroleum Gases | X13: Motor Gasoline | Y13: Natural Gas | Z13: Natural Gas Liquids | AA13: Other Kerosene | AB13: Other Liquid Biofuels | AC13: Other Primary Solid Biomass | AD13: Peat | AE13: Residual Fuel Oil | AF13: Waste Oils | AG13: Wood / Wood Waste
C18: TOTAL | D18: =SUM(D13:D17) -> 1 | E18: =IF(D18=1,"","<--- Must total 100% to ensure that all SWH system output has been associated with a displaced fuel type.") -> 
A20: 9 | B20: ? | C20: Efficiency of Avoided or Replaced Fossil Fuel Systems
C22: 9A. Displaced Fossil Fuel Type | D22: 9B. Avg Efficiency of Displaced Systems
D23: (%)
C24: =IF(C$13="<please select from list>","",C$13) -> 0 | N24: <please select from list> | P24: Biodiesels | Q24: Biogasoline | R24: Charcoal | S24: Crude Oil | T24: Electricity | U24: Ethane | V24: Gas/Diesel Oil | W24: Liquefied Petroleum Gases | X24: Motor Gasoline | Y24: Natural Gas | Z24: Natural Gas Liquids | AA24: Other Kerosene | AB24: Other Liquid Biofuels | AC24: Other Primary Solid Biomass | AD24: Peat | AE24: Residual Fuel Oil | AF24: Waste Oils | AG24: Wood / Wood Waste
C25: =IF(C$14="<please select from list>","",C$14) -> 0
C26: =IF(C$15="<please select from list>","",C$15) -> 0
C27: =IF(C$16="<please select from list>","",C$16) -> 0
C28: =IF(C$17="<please select from list>","",C$17) -> 0
A30: 10 | B30: ? | C30: Total Primary Energy of Avoided Fossil Fuel Consumption
C32: 10A. Displaced Fossil Fuel Type | D32: 10B. Primary Energy Use Avoided
D33: =VLOOKUP('Input Sheet I'!$F$12,'Back End Data & Calcs'!$AW:$AZ,4,FALSE) -> kWh/yr | F33: ='Back End Data & Calcs'!AZ31 -> kWh/yr
C34: =IF(C$13="<please select from list>","",C$13) -> 0 | D34: =IF($D$33='Back End Data & Calcs'!$AX$31,F34,F34*'Back End Data & Calcs'!$AY$31) -> 0 | F34: =IF(ISBLANK(C13),0,D13*'Input Sheet I'!$F$71*(1/D24)) -> 0
C35: =IF(C$14="<please select from list>","",C$14) -> 0 | D35: =IF($D$33='Back End Data & Calcs'!$AX$31,F35,F35*'Back End Data & Calcs'!$AY$31) -> 0 | F35: =IF(ISBLANK(C14),0,D14*'Input Sheet I'!$F$71*(1/D25)) -> 0
C36: =IF(C$15="<please select from list>","",C$15) -> 0 | D36: =IF($D$33='Back End Data & Calcs'!$AX$31,F36,F36*'Back End Data & Calcs'!$AY$31) -> 0 | F36: =IF(ISBLANK(C15),0,D15*'Input Sheet I'!$F$71*(1/D26)) -> 0
C37: =IF(C$16="<please select from list>","",C$16) -> 0 | D37: =IF($D$33='Back End Data & Calcs'!$AX$31,F37,F37*'Back End Data & Calcs'!$AY$31) -> 0 | F37: =IF(ISBLANK(C16),0,D16*'Input Sheet I'!$F$71*(1/D27)) -> 0
C38: =IF(C$17="<please select from list>","",C$17) -> 0 | D38: =IF($D$33='Back End Data & Calcs'!$AX$31,F38,F38*'Back End Data & Calcs'!$AY$31) -> 0 | F38: =IF(ISBLANK(C17),0,D17*'Input Sheet I'!$F$71*(1/D28)) -> 0
C39: TOTAL | D39: =SUM(D34:D38) -> 0
A41: 11 | B41: ? | C41: Effective CO2e Emissions Factors for Fossil Fuels
C43: 11A. Select your country or region:
N44: <select a country> | P44: OECD Americas | Q44: Canada | R44: Chile | S44: Mexico | T44: United States | V44: OECD Asia Oceania | W44: Australia | X44: Israel | Y44: Japan | Z44: Korea | AA44: New Zealand | AC44: OECD Europe | AD44: Austria | AE44: Belgium | AF44: Czech Republic | AG44: Denmark | AH44: Estonia | AI44: Finland | AJ44: France | AK44: Germany | AL44: Greece | AM44: Hungary | AN44: Iceland | AO44: Ireland | AP44: Italy | AQ44: Luxembourg | AR44: Netherlands | AS44: Norway | AT44: Poland | AU44: Portugal | AV44: Slovak Republic | AW44: Slovenia | AX44: Spain | AY44: Sweden | AZ44: Switzerland | BA44: Turkey | BB44: United Kingdom | BD44: AFRICA | BE44: Algeria | BF44: Angola | BG44: Benin | BH44: Botswana | BI44: Cameroon | BJ44: Congo | BK44: Dem. Rep. of Congo | BL44: Côte d'Ivoire | BM44: Egypt | BN44: Eritrea | BO44: Ethiopia | BP44: Gabon | BQ44: Ghana | BR44: Kenya | BS44: Libyan Arab Jamahiriya | BT44: Morocco | BU44: Mozambique | BV44: Namibia | BW44: Nigeria | BX44: Senegal | BY44: South Africa | BZ44: Sudan | CA44: United Rep. of Tanzania | CB44: Togo | CC44: Tunisia | CD44: Zambia | CE44: Zimbabwe | CF44: Other Africa | CH44: ASIA | CI44: Bangladesh | CJ44: Brunei Darussalam | CK44: Cambodia | CL44: Chinese Taipei | CM44: India | CN44: Indonesia | CO44: DPR of Korea | CP44: Malaysia | CQ44: Mongolia | CR44: Myanmar | CS44: Nepal | CT44: Pakistan | CU44: Philippines | CV44: Singapore | CW44: Sri Lanka | CX44: Thailand | CY44: Vietnam | CZ44: Other Asia | DB44: CHINA | DC44: People's Rep. of China | DD44: Hong Kong, China | DF44: MIDDLE EAST | DG44: Bahrain | DH44: Islamic Republic of Iran | DI44: Iraq | DJ44: Jordan | DK44: Kuwait | DL44: Lebanon | DM44: Oman | DN44: Qatar | DO44: Saudi Arabia | DP44: Syrian Arab Republic | DQ44: United Arab Emirates | DR44: Yemen | DT44: NON-OECD EUROPE AND EURASIA | DU44: Albania | DV44: Armenia | DW44: Azerbaijan | DX44: Belarus | DY44: Bosnia and Herzegovina | DZ44: Bulgaria | EA44: Croatia | EB44: Cyprus | EC44: Georgia | ED44: Gibraltar | EE44: Kazakhstan | EF44: Kyrgyzstan | EG44: Latvia | EH44: Lithuania | EI44: FYR of Macedonia | EJ44: Malta | EK44: Qatar | EL44: Romania | EM44: Russian Federation | EN44: Serbia | EO44: Tajikistan | EP44: Turkmenistan | EQ44: Ukraine | ER44: Uzbekistan | ET44: LATIN AMERICA | EU44: Argentina | EV44: Bolivia | EW44: Brazil | EX44: Colombia | EY44: Costa Rica | EZ44: Cuba | FA44: Dominican Republic | FB44: Ecuador | FC44: El Salvador | FD44: Guatemala | FE44: Haiti | FF44: Honduras | FG44: Jamaica | FH44: Netherlands Antilles | FI44: Nicaragua | FJ44: Panama | FK44: Paraguay | FL44: Peru | FM44: Trinidad and Tobago | FN44: Uruguay | FO44: Venezuela | FP44: Other Latin America
C46: 11B. Displaced Fossil Fuel Type | D46: 11C. Default Effective CO2e Emissions Factor | E46: 11D. OPTIONAL: User-Entered Effective CO2e Emissions Factor
D47: (lbs CO2e/kWh) | E47: (lbs CO2e/kWh)
C48: =IF(C$13="<please select from list>","",C$13) -> 0 | D48: =IF(C44="<select a country>","Choose Country in Input 11A",IF(C48="Electricity",SUMIF('Back End Data & Calcs'!$AP:$AP,$C$44,'Back End Data & Calcs'!$AQ:$AQ)*0.00220462,SUMIF('Back End Data & Calcs'!$M$28:$M$45,'Input Sheet II'!C48,'Back End Data & Calcs'!$R$28:$R$45))) -> 0 | F48: =IF(E48=0,D48,E48) -> 0 | N48: <please select from list> | P48: Biodiesels | Q48: Biogasoline | R48: Charcoal | S48: Crude Oil | T48: Electricity | U48: Ethane | V48: Gas/Diesel Oil | W48: Liquefied Petroleum Gases | X48: Motor Gasoline | Y48: Natural Gas | Z48: Natural Gas Liquids | AA48: Other Kerosene | AB48: Other Liquid Biofuels | AC48: Other Primary Solid Biomass | AD48: Peat | AE48: Residual Fuel Oil | AF48: Waste Oils | AG48: Wood / Wood Waste
C49: =IF(C$14="<please select from list>","",C$14) -> 0 | D49: =IF(C49="Electricity",SUMIF('Back End Data & Calcs'!$AP:$AP,$C$44,'Back End Data & Calcs'!$AQ:$AQ)*0.00220462,SUMIF('Back End Data & Calcs'!$M$28:$M$45,'Input Sheet II'!C49,'Back End Data & Calcs'!$R$28:$R$45)) -> 0 | F49: =IF(E49=0,D49,E49) -> 0
C50: =IF(C$15="<please select from list>","",C$15) -> 0 | D50: =IF(C50="Electricity",SUMIF('Back End Data & Calcs'!$AP:$AP,$C$44,'Back End Data & Calcs'!$AQ:$AQ)*0.00220462,SUMIF('Back End Data & Calcs'!$M$28:$M$45,'Input Sheet II'!C50,'Back End Data & Calcs'!$R$28:$R$45)) -> 0 | F50: 0
C51: =IF(C$16="<please select from list>","",C$16) -> 0 | D51: =IF(C51="Electricity",SUMIF('Back End Data & Calcs'!$AP:$AP,$C$44,'Back End Data & Calcs'!$AQ:$AQ)*0.00220462,SUMIF('Back End Data & Calcs'!$M$28:$M$45,'Input Sheet II'!C51,'Back End Data & Calcs'!$R$28:$R$45)) -> 0 | F51: 0
C52: =IF(C$17="<please select from list>","",C$17) -> 0 | D52: =IF(C52="Electricity",SUMIF('Back End Data & Calcs'!$AP:$AP,$C$44,'Back End Data & Calcs'!$AQ:$AQ)*0.00220462,SUMIF('Back End Data & Calcs'!$M$28:$M$45,'Input Sheet II'!C52,'Back End Data & Calcs'!$R$28:$R$45)) -> 0 | F52: 0
A54: 12 | B54: ? | C54: Total CO2e Emissions Reduced
C56: 12A. Displaced Fossil Fuel Type | D56: 12B. Total CO2e Reduced
D57: =VLOOKUP('Input Sheet I'!I12,'Back End Data & Calcs'!AW35:AX36,2,FALSE) -> kg CO2e/yr | F57: ='Back End Data & Calcs'!$AX$35 -> lbs CO2e/yr
C58: =IF(C$13="<please select from list>","",C$13) -> 0 | D58: =IF($D$57=$F$57,F58,F58*'Back End Data & Calcs'!$AY$35) -> 0 | F58: =IF(ISBLANK(C13),0,F48*F34) -> 0
C59: =IF(C$14="<please select from list>","",C$14) -> 0 | D59: =IF($D$57=$F$57,F59,F59*'Back End Data & Calcs'!$AY$35) -> 0 | F59: =IF(ISBLANK(C14),0,F49*F35) -> 0
C60: =IF(C$15="<please select from list>","",C$15) -> 0 | D60: =IF($D$57=$F$57,F60,F60*'Back End Data & Calcs'!$AY$35) -> 0 | F60: =IF(ISBLANK(C15),0,F50*F36) -> 0
C61: =IF(C$16="<please select from list>","",C$16) -> 0 | D61: =IF($D$57=$F$57,F61,F61*'Back End Data & Calcs'!$AY$35) -> 0 | F61: =IF(ISBLANK(C16),0,F51*F37) -> 0
C62: =IF(C$17="<please select from list>","",C$17) -> 0 | D62: =IF($D$57=$F$57,F62,F62*'Back End Data & Calcs'!$AY$35) -> 0 | F62: =IF(ISBLANK(C17),0,F52*F38) -> 0
C63: TOTAL | D63: =SUM(D58:D62) -> 0
H67: USE SWH GOAL MODULE u
H69: PROCEED TO SUMMARY REPORT u

Sheet GHG Report
B1: TechScope Report | G1: Country:
B2: ='Input Sheet I'!A1 -> Greenhouse Gas Calculator for Residential Solar Water Heating | G2: ='Input Sheet I'!D4 -> 0
B4: OUTPUT OF SOLAR WATER HEATING SYSTEMS INSTALLED
B6: ="Solar Hot Water Systems Installed ("&'Input Sheet I'!D56&")" -> Solar Hot Water Systems Installed (m2) | F6: ="Energy Output ("&'Input Sheet I'!D66&")" -> Energy Output (kWhth/yr)
C7: TOTAL | D7: ='Input Sheet I'!D61 -> 0 | F7: ='Input Sheet I'!D71 -> 0
C8: ='Input Sheet I'!C57 -> 0 | D8: ='Input Sheet I'!D57 -> 0 | F8: ='Input Sheet I'!D67 -> 0
C9: ='Input Sheet I'!C58 -> 0 | D9: ='Input Sheet I'!D58 -> 0 | F9: ='Input Sheet I'!D68 -> 0
C10: ='Input Sheet I'!C59 -> 0 | D10: ='Input Sheet I'!D59 -> 0 | F10: ='Input Sheet I'!D69 -> 0
C11: ='Input Sheet I'!C60 -> 0 | D11: ='Input Sheet I'!D60 -> 0 | F11: ='Input Sheet I'!D70 -> 0
B14: TOTAL GREENHOUSE GAS REDUCTIONS
M15: Per million lbs of CO2e | N15: Per million kg of CO2e
B16: =C33 -> 0 | D16: Equivalent to: | M16: ='Back End Data & Calcs'!AX35 -> lbs CO2e/yr | N16: ='Back End Data & Calcs'!AX36 -> kg CO2e/yr
F17: =$B$16/1000000*HLOOKUP($B$18,$M$16:$N$20,2,FALSE) -> 0 | K17: Passenger Cars | M17: 95.5 | N17: 211
B18: =VLOOKUP('Input Sheet I'!I12,'Back End Data & Calcs'!AW35:AX36,2,FALSE) -> kg CO2e/yr | F18: Passenger Vehicles on the Road | K18: Barrels of Oil | M18: 1055 | N18: 2326
K19: Pounds of Coal | M19: 487210 | N19: 1074114
C20: =$B$16/1000000*HLOOKUP($B$18,$M$16:$N$20,3,FALSE) -> 0 | F20: =$B$16/1000000*HLOOKUP($B$18,$M$16:$N$20,5,FALSE) -> 0 | K20: Tonnes of Coal | M20: =M19*0.000453592 -> 220.9945583 | N20: =N19*0.000453592 -> 487.2095175
C21: Barrels of Oil Burned | F21: Tonnes of Coal Burned
B24: GHG REDUCTIONS BY AVOIDED FOSSIL FUEL TYPE
B26: AVOIDED EMISSIONS
C27: =VLOOKUP('Input Sheet I'!I12,'Back End Data & Calcs'!AW35:AX36,2,FALSE) -> kg CO2e/yr
B28: ='Input Sheet II'!C13 -> 0 | C28: ='Input Sheet II'!D58 -> 0 | G28: =B28 -> 0
B29: ='Input Sheet II'!C14 -> 0 | C29: ='Input Sheet II'!D59 -> 0 | G29: =B29 -> 0
B30: ='Input Sheet II'!C15 -> 0 | C30: ='Input Sheet II'!D60 -> 0 | G30: 0
B31: ='Input Sheet II'!C16 -> 0 | C31: ='Input Sheet II'!D61 -> 0 | G31: 0
B32: ='Input Sheet II'!C17 -> 0 | C32: ='Input Sheet II'!D62 -> 0 | G32: 0
B33: TOTAL | C33: ='Input Sheet II'!D63 -> 0
B36: TechScope GHG Calculator Summary Report | F36: Date Prepared: | G36: =TODAY() -> 2015-11-09

Sheet SWH Goal Module
A1: Greenhouse Gas Calculator for Residential Solar Water Heating | G1: Legend
A2: Setting a SWH Target to Achieve GHG Emissions Reduction Goals | G2: Context Help | H2: Input field (optional)
G3: Calculated | H3: Input field (mandatory)
A4: Country/Region Name: | D4: ='Country data'!C3 -> 0 | G4: Data Label | H4: Intermediate or final result
C6: t RETURN TO INPUT SHEET I
C8: t RETURN TO INPUT SHEET II
A11: A | B11: i | C11: SWH Output and Avoided Fossil Fuel Emissions Inputs
C13: Follow instructions in Input Sheet I to complete sections 1-5. It is not necessary to complete Section 6.
C14: Follow instructions in Input Sheet II to complete sections 8-11.
A16: B | B16: i | C16: Relative Portion of Different Types of SWH System
C18: B1. Type of SWH System | D18: B2. Percent of total collector area (%)
C20: ='Input Sheet I'!C23 -> 0 | D20: 1
C21: ='Input Sheet I'!C24 -> 0
C22: ='Input Sheet I'!C25 -> 0
C23: ='Input Sheet I'!C26 -> 0
C24: Total | D24: =SUM(D20:D23) -> 1 | E24: =IF(D24=1,"","<--- Must total 100%.") -> 
A26: C | B26: i | C26: GHG Reduction Goal
C29: =VLOOKUP('Input Sheet I'!I12,'Back End Data & Calcs'!AW35:AX36,2,FALSE) -> kg CO2e/yr
A31: D | B31: i | C31: Calculate SWH Goal
E34: =C28-'Input Sheet II'!D63 -> 0
C37: Note: This function requires that Macros be enabled under Excel settings. Click this link for more information on how to enable Macros.
A39: E | B39: i | C39: Total Quantity and Output of SWH Needed to Reach SWH Goal
C41: E1. Type of SWH System | D41: E2. Quantity of SWH | E41: E3. Output of SWH Systems
D42: ='Input Sheet I'!D56 -> m2 | E42: ='Input Sheet I'!D66 -> kWhth/yr
C43: ='Input Sheet I'!C23 -> 0 | D43: =D$47*D20 -> 0 | E43: =D43*0.7/1000 -> 0
C44: ='Input Sheet I'!C24 -> 0 | D44: =D$47*D21 -> 0 | E44: =D44*0.7/1000 -> 0
C45: ='Input Sheet I'!C25 -> 0 | D45: =D$47*D22 -> 0 | E45: 0
C46: ='Input Sheet I'!C26 -> 0 | D46: =D$47*D23 -> 0 | E46: 0
C47: ='Input Sheet I'!C61 -> Total | E47: 0
G51: PROCEED TO SUMMARY REPORT u

Sheet Back End Data & Calcs (hidden)
B1: Module Efficiency for OECD Countires | M1: GHG Emissions Factors for Stationary Combustion Fuels | AB1: Country Generation Mixes | AP1: GHG Emissions from Electricty per kWh | AW1: Unit Conversions
B2: Source: IEA-SHC (2013). Solar Heating Worldwide 2015 Edition. | M2: Source: IPCC (2006). Guidelines for National Greenhouse Gas Inventories. Chapter 2: Stationary Combustion | U2: Alternate Source (US-focused): | AB2: Source: CO2 Emissions from Fuel Combustion (2014 Edition), IEA, Paris. | AP2: Source: CO2 Emissions From Fuel Combustion Highlights 2011
B3: http://www.iea-shc.org/data/sites/1/publications/Solar-Heat-Worldwide-2015.pdf | M3: TABLE 2.5: DEFAULT EMISSION FACTORS FOR STATIONARY COMBUSTION IN THE RESIDENTIAL AND AGRICULTURE/FORESTRY/FISHING/FISHING FARMS CATEGORIES | U3: EIA Carbon Dioxide Emissions Coefficients | AC3: COAL | AF3: OIL | AI3: GAS | AL3: TOTAL | AP3: grammes CO 2 / kilowatt hour
M4: Global Warming Potentials (GWP) for CH4 and N20 from 2013 IPCC AR5 (100 year) | U4: http://www.eia.gov/environment/emissions/co2_vol_mass.cfm | AC4: 2010 | AD4: 2011 | AE4: 2012 | AF4: 2010 | AG4: 2011 | AH4: 2012 | AI4: 2010 | AJ4: 2011 | AK4: 2012 | AL4: 2010 | AM4: 2011 | AN4: 2012
B5: Country | C5: Total collector area [m²] | D5: Total capacity [MWth] | E5: Calculated number of systems | F5: Collector yield [GWh/a] | G5: Energy savings [toe/a] | H5: CO2 reduction [tCO2/a] | I5: Yield per m2 [kWh/a/m2] | J5: Insolation [kWh/m2/year] | K5: Efficiency of Selected Country | M5: kg / TJ | N5: CO2 | O5: CH4 | P5: N2O | Q5: CO2e | R5: CO2e (kg/MMBtu) | V5: lbs CO2 | W5: Kg CO2 | X5: Lbs CO2 per MMBTU | Y5: Kg CO2 per MMBtu | AB5: million tonnes of CO2 | AP5: Country/Region | AQ5: 2009
B6: Albania | C6: 141885 | D6: 99 | E6: 18188 | F6: 99 | G6: 10664 | H6: 34473 | I6: =F6*1000000/C6 -> 697.7481763 | J6: =IF($B6='Input Sheet I'!$C$36,'Input Sheet I'!$F$17,"") ->  | K6: =IF($B6='Input Sheet I'!$C$36,I6/J6,"") ->  | M6: GWP | O6: 34 | P6: 298 | AB6: World | AC6: 13136.30089 | AD6: 13751.78369 | AE6: 13923.75831 | AF6: 10990.40054 | AG6: 11103.02992 | AH6: 11205.38622 | AI6: 6214.829961 | AJ6: 6327.253144 | AK6: 6439.777798 | AL6: =AI6+AF6+AC6 -> 30341.53139 | AM6: =AJ6+AG6+AD6 -> 31182.06675 | AN6: 31568.92233 | AP6: Africa | AQ6: 643
B7: Australia | C7: 8023000 | D7: 5616 | E7: 1024556 | F7: 4992 | G7: 536591 | H7: 1734637 | I7: =F7*1000000/C7 -> 622.211143 | J7: =IF($B7='Input Sheet I'!$C$36,'Input Sheet I'!$F$17,"") ->  | K7: =IF($B7='Input Sheet I'!$C$36,I7/J7,"") ->  | U7: For homes and businesses | Z7: Compare to IPCC | AB7: Albania | AC7: 0.447426 | AD7: 0.560477 | AE7: 0.654824 | AF7: 3.425222 | AG7: 3.544457 | AH7: 3.140788 | AI7: 0.026869 | AJ7: 0.028024 | AK7: 0.030886 | AL7: =AI7+AF7+AC7 -> 3.899517 | AM7: =AJ7+AG7+AD7 -> 4.132958 | AN7: =AK7+AH7+AE7 -> 3.826498 | AP7: Albania | AQ7: 11
B8: Austria | C8: 5056098 | D8: 3539 | E8: 503348 | F8: 2044 | G8: 219716 | H8: 710276 | I8: 404.2643161 | J8: =IF($B8='Input Sheet I'!$C$36,'Input Sheet I'!$F$17,"") ->  | K8: =IF($B8='Input Sheet I'!$C$36,I8/J8,"") ->  | M8: Crude Oil | N8: 73300 | O8: 10 | P8: 0.6 | Q8: =N8+O$6*O8+P$6*P8 -> 73818.8 | U8: Propane | V8: 12.7/gallon | W8: 5.8/gallon | X8: 139 | Y8: 63.1 | AB8: Algeria | AC8: 0.73183 | AD8: 0.588848 | AE8: 0.583987 | AF8: 43.748568 | AG8: 46.821243 | AH8: 50.903882 | AI8: 53.034023 | AJ8: 56.472509 | AK8: 62.859591 | AL8: 97.514421 | AM8: 103.8826 | AN8: 114.34746 | AP8: Algeria | AQ8: 576
B9: Barbados | C9: 131690 | D9: 92 | E9: 26977 | F9: 112 | G9: 12024 | H9: 38869 | I9: 850.482193 | J9: =IF($B9='Input Sheet I'!$C$36,'Input Sheet I'!$F$17,"") ->  | K9: =IF($B9='Input Sheet I'!$C$36,I9/J9,"") ->  | M9: Natural Gas Liquids | N9: 64200 | O9: 10 | P9: 0.6 | Q9: 64718.8 | R9: =Q9*0.00105505585 -> 68.28194854 | U9: Butane | V9: 14.8/gallon | W9: 6.7/gallon | X9: 143.2 | Y9: 65 | AB9: Angola | AC9: 0 | AD9: 0 | AE9: 0 | AF9: 14.310244 | AG9: 14.294214 | AH9: 15.005476 | AI9: 1.398917 | AJ9: 1.435178 | AK9: 1.450446 | AL9: 15.709161 | AM9: 15.729392 | AN9: 16.455922 | AP9: Angola | AQ9: 237
B10: Belgium | C10: 487783 | D10: 341 | E10: 99922 | F10: 199 | G10: 21379 | H10: 69112 | I10: 407.9682974 | J10: =IF($B10='Input Sheet I'!$C$36,'Input Sheet I'!$F$17,"") ->  | K10: =IF($B10='Input Sheet I'!$C$36,I10/J10,"") ->  | M10: Motor Gasoline | N10: 69300 | O10: 10 | P10: 0.6 | Q10: 69818.8 | R10: 73.66273338 | U10: Butane/Propane Mix | V10: 13.7/gallon | W10: 6.2/gallon | X10: 141.1 | Y10: 64 | AB10: Argentina | AC10: 5.628676 | AD10: 6.409655 | AE10: 5.481165 | AF10: 81.348857 | AG10: 84.278189 | AH10: 87.251237 | AI10: 89.354637 | AJ10: 93.016969 | AK10: 95.776382 | AL10: 176.33217 | AM10: 183.704813 | AN10: 188.508784 | AP10: Argentina | AQ10: 393
B11: Brazil | C11: 9609263 | D11: 6726 | E11: 1549301 | F11: 6407 | G11: 688607 | H11: 2226059 | I11: 666.7524866 | J11: =IF($B11='Input Sheet I'!$C$36,'Input Sheet I'!$F$17,"") ->  | K11: =IF($B11='Input Sheet I'!$C$36,I11/J11,"") ->  | M11: Other Kerosene | N11: 71900 | O11: 10 | P11: 0.6 | Q11: 72418.8 | R11: 76.40587859 | U11: Home Heating and Diesel Fuel | V11: 22.4/gallon | W11: 10.2/gallon | X11: 161.3 | Y11: 73.2 | Z11: =R12 -> 78.72700146 | AB11: Armenia | AC11: 0.002387 | AD11: 0 | AE11: 0.004774 | AF11: 1.022748 | AG11: 0.959775 | AH11: 0.914381 | AI11: 3.016555 | AJ11: 3.70351 | AK11: 4.504422 | AL11: 4.04169 | AM11: 4.663285 | AN11: 5.423577 | AP11: Armenia | AQ11: 108
B12: Bulgaria | C12: 126200 | D12: 88 | E12: 23209 | F12: 66 | G12: 7071 | H12: 22859 | I12: 522.9793978 | J12: =IF($B12='Input Sheet I'!$C$36,'Input Sheet I'!$F$17,"") ->  | K12: =IF($B12='Input Sheet I'!$C$36,I12/J12,"") ->  | M12: Gas/Diesel Oil | N12: 74100 | O12: 10 | P12: 0.6 | Q12: 74618.8 | R12: 78.72700146 | U12: Kerosene | V12: 21.5/gallon | W12: 9.8/gallon | X12: 159.4 | Y12: 72.3 | Z12: =R11 -> 76.40587859 | AB12: Australia | AC12: 198.600261 | AD12: 190.607919 | AE12: 188.166111 | AF12: 119.51797 | AG12: 123.495422 | AH12: 128.823673 | AI12: 68.741782 | AJ12: 73.762978 | AK12: 68.842599 | AL12: 386.860013 | AM12: 387.866319 | AN12: 385.832383 | AP12: Asia | AQ12: 745
B13: Canada | C13: 889370 | D13: 623 | E13: 14894 | F13: 423 | G13: 45489 | H13: 147051 | I13: 475.617572 | J13: =IF($B13='Input Sheet I'!$C$36,'Input Sheet I'!$F$17,"") ->  | K13: =IF($B13='Input Sheet I'!$C$36,I13/J13,"") ->  | M13: Residual Fuel Oil | N13: 77400 | O13: 10 | P13: 0.6 | Q13: 77918.8 | R13: 82.20868576 | U13: Coal (All types) | V13: 4,631.5/short ton | W13: 2,100.8/short ton | X13: 210.2 | Y13: 95.3 | AB13: Austria | AC13: 14.457291 | AD13: 15.237035 | AE13: 13.908768 | AF13: 33.056257 | AG13: 31.241134 | AH13: 30.645075 | AI13: 18.89676 | AJ13: 17.929437 | AK13: 17.07499 | AL13: 66.410308 | AM13: 64.407606 | AN13: 61.628833 | AP13: Australia | AQ13: 853
B14: Chile | C14: 139309 | D14: 98 | E14: 17525 | F14: 105 | G14: 11232 | H14: 36310 | I14: 753.7201473 | J14: =IF($B14='Input Sheet I'!$C$36,'Input Sheet I'!$F$17,"") ->  | K14: =IF($B14='Input Sheet I'!$C$36,I14/J14,"") ->  | M14: Liquefied Petroleum Gases | N14: 63100 | O14: 5 | P14: 0.1 | Q14: 63299.8 | R14: 66.78482429 | U14: Natural Gas | V14: 119.9/thousand cubic feet | W14: 54.4/thousand cubic feet | X14: 117 | Y14: 53.1 | Z14: =R16 -> 59.39943334 | AB14: Azerbaijan | AC14: 0 | AD14: 0 | AE14: 0 | AF14: 7.756212 | AG14: 9.188122 | AH14: 9.976455 | AI14: 16.066693 | AJ14: 17.603406 | AK14: 19.29782 | AL14: 23.822905 | AM14: 26.791528 | AN14: 29.274275 | AP14: Austria | AQ14: 163
B15: China | C15: 374660000 | D15: 262262 | E15: 85403747 | F15: 217841 | G15: 23413743 | H15: 75689608 | I15: 581.4365024 | J15: =IF($B15='Input Sheet I'!$C$36,'Input Sheet I'!$F$17,"") ->  | K15: =IF($B15='Input Sheet I'!$C$36,I15/J15,"") ->  | M15: Ethane | N15: 61600 | O15: 5 | P15: 0.1 | Q15: 61799.8 | R15: 65.20224052 | U15: Gasoline | V15: 19.6/gallon | W15: 8.9/gallon | X15: 157.2 | Y15: 71.3 | Z15: =R10 -> 73.66273338 | AB15: Bahrain | AC15: 0 | AD15: 0 | AE15: 0 | AF15: 4.176442 | AG15: 4.074017 | AH15: 4.670039 | AI15: 23.883012 | AJ15: 23.985782 | AK15: 24.137996 | AL15: 28.059454 | AM15: 28.059799 | AN15: 28.808035 | AP15: Azerbaijan | AQ15: 443
B16: Croatia | C16: 145565 | D16: 102 | E16: 29819 | F16: 75 | G16: 8093 | H16: 26164 | I16: 515.2337444 | J16: =IF($B16='Input Sheet I'!$C$36,'Input Sheet I'!$F$17,"") ->  | K16: =IF($B16='Input Sheet I'!$C$36,I16/J16,"") ->  | M16: Natural Gas | N16: 56100 | O16: 5 | P16: 0.1 | Q16: 56299.8 | R16: 59.39943334 | U16: Residual Heating Fuel (Businesses only) | V16: 26/gallon | W16: 11.8/gallon | X16: 173.7 | Y16: 78.8 | Z16: =R13 -> 82.20868576 | AB16: Bangladesh | AC16: 3.138929 | AD16: 2.830474 | AE16: 3.501713 | AF16: 11.012465 | AG16: 14.411138 | AH16: 15.363149 | AI16: 38.349029 | AJ16: 38.282729 | AK16: 40.688299 | AL16: 52.500423 | AM16: 55.524341 | AN16: 59.553161 | AP16: Bahrain | AQ16: 665
B17: Cyprus | C17: 700947 | D17: 491 | E17: 154463 | F17: 623 | G17: 66964 | H17: 216475 | I17: 888.7975838 | J17: =IF($B17='Input Sheet I'!$C$36,'Input Sheet I'!$F$17,"") ->  | K17: =IF($B17='Input Sheet I'!$C$36,I17/J17,"") ->  | M17: Waste Oils | N17: 73300 | O17: 300 | P17: 4 | Q17: 84692 | R17: 89.35479005 | AB17: Belarus | AC17: 2.210866 | AD17: 2.333492 | AE17: 2.999978 | AF17: 20.948876 | AG17: 24.200901 | AH17: 29.694241 | AI17: 41.193148 | AJ17: 38.921919 | AK17: 38.301514 | AL17: 64.35289 | AM17: 65.456312 | AN17: 70.995733 | AP17: Bangladesh | AQ17: 585
B18: Czech Republic | C18: 971269 | D18: 680 | E18: 68205 | F18: 332 | G18: 35636 | H18: 115202 | I18: 341.820855 | J18: =IF($B18='Input Sheet I'!$C$36,'Input Sheet I'!$F$17,"") ->  | K18: =IF($B18='Input Sheet I'!$C$36,I18/J18,"") ->  | M18: Peat | N18: 106000 | O18: 300 | P18: 1.4 | Q18: 116617.2 | R18: 123.0376591 | AB18: Belgium | AC18: 13.354548 | AD18: 12.509474 | AE18: 11.058886 | AF18: 53.990988 | AG18: 50.582061 | AH18: 48.891815 | AI18: 38.826666 | AJ18: 34.921702 | AK18: 33.432319 | AL18: 106.172202 | AM18: 98.013237 | AN18: 93.38302 | AP18: Belarus | AQ18: 302
B19: Denmark | C19: 785090 | D19: 550 | E19: 91965 | F19: 335 | G19: 35964 | H19: 116260 | I19: 426.702671 | J19: =IF($B19='Input Sheet I'!$C$36,'Input Sheet I'!$F$17,"") ->  | K19: =IF($B19='Input Sheet I'!$C$36,I19/J19,"") ->  | M19: Wood / Wood Waste | N19: 112000 | O19: 300 | P19: 4 | Q19: 123392 | R19: 130.1854514 | AB19: Benin | AC19: 0 | AD19: 0 | AE19: 0 | AF19: 4.504868 | AG19: 4.697039 | AH19: 4.949336 | AI19: 0 | AJ19: 0 | AK19: 0 | AL19: 4.504868 | AM19: 4.697039 | AN19: 4.949336 | AP19: Belgium | AQ19: 218
B20: Estonia | C20: 8520 | D20: 6 | E20: 1745 | F20: 4 | G20: 379 | H20: 1225 | I20: 469.4835681 | J20: =IF($B20='Input Sheet I'!$C$36,'Input Sheet I'!$F$17,"") ->  | K20: =IF($B20='Input Sheet I'!$C$36,I20/J20,"") ->  | M20: Other Primary Solid Biomass | N20: 100000 | O20: 300 | P20: 4 | Q20: 111392 | R20: 117.5247812 | AB20: Bolivia | AC20: 0 | AD20: 0 | AE20: 0 | AF20: 8.026739 | AG20: 8.609337 | AH20: 9.269896 | AI20: 6.034522 | AJ20: 6.63911 | AK20: 7.049181 | AL20: 14.061261 | AM20: 15.248447 | AN20: 16.319077 | AP20: Benin | AQ20: 725
B21: Finland | C21: 52202 | D21: 37 | E21: 10694 | F21: 22 | G21: 2358 | H21: 7621 | I21: 421.4397916 | J21: =IF($B21='Input Sheet I'!$C$36,'Input Sheet I'!$F$17,"") ->  | K21: =IF($B21='Input Sheet I'!$C$36,I21/J21,"") ->  | M21: Charcoal | N21: 112000 | O21: 200 | P21: 1 | Q21: 119098 | R21: 125.6550416 | AB21: Bosnia and Herzegovina | AC21: 15.190377 | AD21: 17.924491 | AE21: 16.65241 | AF21: 4.391947 | AG21: 4.357674 | AH21: 4.084632 | AI21: 0.464568 | AJ21: 0.528648 | AK21: 0.486759 | AL21: 20.046892 | AM21: 22.810813 | AN21: 21.223801 | AP21: Bolivia | AQ21: 64
B22: France (mainland) | C22: 2370399 | D22: 1659 | E22: 372260 | F22: 1144 | G22: 122955 | H22: 397476 | I22: 482.6191709 | J22: =IF($B22='Input Sheet I'!$C$36,'Input Sheet I'!$F$17,"") ->  | K22: =IF($B22='Input Sheet I'!$C$36,I22/J22,"") ->  | M22: Biogasoline | N22: 70800 | O22: 10 | P22: 0.6 | Q22: 71318.8 | R22: 75.24531715 | AB22: Botswana | AC22: 2.198562 | AD22: 1.769793 | AE22: 1.570714 | AF22: 2.614327 | AG22: 2.772063 | AH22: 2.901844 | AI22: 0 | AJ22: 0 | AK22: 0 | AL22: 4.812889 | AM22: 4.541856 | AN22: 4.472558 | AP22: Bosnia and Herzegovina | AQ22: 776
B23: Germany | C23: 17514176 | D23: 12260 | E23: 1915127 | F23: 7124 | G23: 765699 | H23: 2475274 | I23: 406.7562185 | J23: =IF($B23='Input Sheet I'!$C$36,'Input Sheet I'!$F$17,"") ->  | K23: =IF($B23='Input Sheet I'!$C$36,I23/J23,"") ->  | M23: Biodiesels | N23: 70800 | O23: 10 | P23: 0.6 | Q23: 71318.8 | R23: 75.24531715 | AB23: Brazil | AC23: 52.720688 | AD23: 55.049708 | AE23: 57.730891 | AF23: 284.035488 | AG23: 302.604736 | AH23: 322.775988 | AI23: 51.767712 | AJ23: 50.346926 | AK23: 59.733075 | AL23: 388.523888 | AM23: 408.00137 | AN23: 440.239954 | AP23: Botswana | AQ23: 63
B24: Greece | C24: 4178350 | D24: 2925 | E24: 1612857 | F24: 3207 | G24: 344706 | H24: 1114330 | I24: 767.5278519 | J24: =IF($B24='Input Sheet I'!$C$36,'Input Sheet I'!$F$17,"") ->  | K24: =IF($B24='Input Sheet I'!$C$36,I24/J24,"") ->  | M24: Other Liquid Biofuels | N24: 79600 | O24: 10 | P24: 0.6 | Q24: 80118.8 | R24: 84.52980863 | AB24: Brunei Darussalam | AC24: 0 | AD24: 0 | AE24: 0 | AF24: 1.730191 | AG24: 1.871853 | AH24: 1.993519 | AI24: 5.832993 | AJ24: 6.39708 | AK24: 6.40278 | AL24: 7.563184 | AM24: 8.268933 | AN24: 8.396299 | AP24: Brazil | AQ24: 175
B25: Hungary | C25: 252100 | D25: 176 | E25: 29185 | F25: 114 | G25: 12215 | H25: 39489 | I25: 452.2015073 | J25: =IF($B25='Input Sheet I'!$C$36,'Input Sheet I'!$F$17,"") ->  | K25: =IF($B25='Input Sheet I'!$C$36,I25/J25,"") ->  | S25: =Q25*0.00105505585 -> 0 | AB25: Bulgaria | AC25: 28.1461 | AD25: 33.182301 | AE25: 28.237448 | AF25: 10.975387 | AG25: 10.112863 | AH25: 10.580732 | AI25: 5.073926 | AJ25: 5.791435 | AK25: 5.449749 | AL25: 44.195413 | AM25: 49.086599 | AN25: 44.267929 | AP25: Brunei Darussalam | AQ25: 755
B26: India | C26: 6231200 | D26: 4362 | E26: 1125978 | F26: 5221 | G26: 561170 | H26: 1814094 | I26: 837.8803441 | J26: =IF($B26='Input Sheet I'!$C$36,'Input Sheet I'!$F$17,"") ->  | K26: =IF($B26='Input Sheet I'!$C$36,I26/J26,"") ->  | M26: lbs / kWh | N26: 1 kg = | O26: 2.20462 | P26: lbs | Q26: 1 TJ = | R26: 277777.778 | S26: kWh | AB26: Cambodia | AC26: 0.031829 | AD26: 0.035574 | AE26: 0.039318 | AF26: 3.724456 | AG26: 3.992508 | AH26: 4.132359 | AI26: 0 | AJ26: 0 | AK26: 0 | AL26: 3.756285 | AM26: 4.028082 | AN26: 4.171677 | AP26: Bulgaria | AQ26: 463 | AY26: multipler to other
B27: Ireland | C27: 277619 | D27: 194 | E27: 64250 | F27: 116 | G27: 12493 | H27: 40386 | I27: 417.8388367 | J27: =IF($B27='Input Sheet I'!$C$36,'Input Sheet I'!$F$17,"") ->  | K27: =IF($B27='Input Sheet I'!$C$36,I27/J27,"") ->  | AB27: Cameroon | AC27: 0 | AD27: 0 | AE27: 0 | AF27: 4.544996 | AG27: 4.688844 | AH27: 4.889328 | AI27: 0.484954 | AJ27: 0.504843 | AK27: 0.527944 | AL27: 5.02995 | AM27: 5.193687 | AN27: 5.417272 | AP27: Cambodia | AQ27: 151 | AW27: Meters squared of collector area (m2) | AX27: m2 | AY27: 0.7
B28: Israel | C28: 4150115 | D28: 2905 | E28: 1372992 | F28: 3888 | G28: 417912 | H28: 1350983 | I28: 936.8415092 | J28: =IF($B28='Input Sheet I'!$C$36,'Input Sheet I'!$F$17,"") ->  | K28: =IF($B28='Input Sheet I'!$C$36,I28/J28,"") ->  | M28: Crude Oil | R28: =Q8*$O$26/$R$26 -> 0.5858726498 | AB28: Canada | AC28: 91.192872 | AD28: 84.927441 | AE28: 71.880011 | AF28: 260.909221 | AG28: 261.216179 | AH28: 266.802962 | AI28: 178.547791 | AJ28: 189.764501 | AK28: 194.284884 | AL28: 530.649884 | AM28: 535.908121 | AN28: 532.967857 | AP28: Cameroon | AQ28: 243 | AW28: System capacity (kWth) | AX28: kWth | AY28: =1/0.7 -> 1.428571429
B29: Italy | C29: 3692896 | D29: 2585 | E29: 632778 | F29: 2266 | G29: 243579 | H29: 787419 | I29: 613.6105647 | J29: =IF($B29='Input Sheet I'!$C$36,'Input Sheet I'!$F$17,"") ->  | K29: =IF($B29='Input Sheet I'!$C$36,I29/J29,"") ->  | M29: Natural Gas Liquids | R29: =Q9*$O$26/$R$26 -> 0.5136492987 | AB29: Chile | AC29: 17.165251 | AD29: 20.946321 | AE29: 24.097113 | AF29: 42.794409 | AG29: 44.227148 | AH29: 44.319997 | AI29: 9.814586 | AJ29: 10.851198 | AK29: 9.354116 | AL29: 69.774246 | AM29: 76.024667 | AN29: 77.771226 | AP29: Canada | AQ29: 167
B30: Japan | C30: 4074396 | D30: 2852 | E30: 995253 | F30: 2366 | G30: 254254 | H30: 821926 | I30: 580.6995687 | J30: =IF($B30='Input Sheet I'!$C$36,'Input Sheet I'!$F$17,"") ->  | K30: =IF($B30='Input Sheet I'!$C$36,I30/J30,"") ->  | M30: Motor Gasoline | R30: 0.5541261218 | AB30: Chinese Taipei | AC30: 154.774122 | AD30: 149.502729 | AE30: 147.092075 | AF30: 82.638947 | AG30: 78.222069 | AH30: 74.926749 | AI30: 30.425483 | AJ30: 33.277954 | AK30: 31.532098 | AL30: 267.838552 | AM30: 261.002752 | AN30: 253.550922 | AP30: Chile | AQ30: 373 | AZ30: For primary energy
B31: Jordan | C31: 1192270 | D31: 835 | E31: 211031 | F31: 1129 | G31: 121342 | H31: 392261 | I31: 946.9331611 | J31: =IF($B31='Input Sheet I'!$C$36,'Input Sheet I'!$F$17,"") ->  | K31: =IF($B31='Input Sheet I'!$C$36,I31/J31,"") ->  | M31: Other Kerosene | R31: 0.574761365 | AB31: Colombia | AC31: 10.49394 | AD31: 12.253166 | AE31: 9.469664 | AF31: 32.85029 | AG31: 38.219788 | AH31: 39.795975 | AI31: 18.419871 | AJ31: 17.401896 | AK31: 18.08664 | AL31: 61.764101 | AM31: 67.87485 | AN31: 67.352279 | AP31: China | AQ31: 743 | AW31: Kilowatt Hours Therm (kWhth) | AX31: kWhth/yr | AY31: =3412.14163/1000000 -> 0.00341214163 | AZ31: kWh/yr
B32: Korea, South | C32: 1762570 | D32: 1234 | E32: 254163 | F32: 871 | G32: 93632 | H32: 302683 | I32: 494.1647708 | J32: =IF($B32='Input Sheet I'!$C$36,'Input Sheet I'!$F$17,"") ->  | K32: =IF($B32='Input Sheet I'!$C$36,I32/J32,"") ->  | M32: Gas/Diesel Oil | R32: 0.5922219554 | AB32: Congo | AC32: 0 | AD32: 0 | AE32: 0 | AF32: 1.611525 | AG32: 1.770657 | AH32: 1.884142 | AI32: 0.197025 | AJ32: 0.287981 | AK32: 0.299079 | AL32: 1.80855 | AM32: 2.058638 | AN32: 2.183221 | AP32: Chinese Taipei | AQ32: 635 | AW32: Millions of Btus (MMBtu) | AX32: MMBtu/yr | AY32: =1/AY31 -> 293.0710704 | AZ32: MMBtu/yr
B33: Latvia | C33: 6040 | D33: 4 | E33: 1237 | F33: 3 | G33: 286 | H33: 923 | I33: 496.6887417 | J33: =IF($B33='Input Sheet I'!$C$36,'Input Sheet I'!$F$17,"") ->  | K33: =IF($B33='Input Sheet I'!$C$36,I33/J33,"") ->  | M33: Residual Fuel Oil | R33: 0.618412841 | AB33: Costa Rica | AC33: 0.262153 | AD33: 0.257765 | AE33: 0.265043 | AF33: 6.267771 | AG33: 6.424023 | AH33: 6.489058 | AI33: 0 | AJ33: 0 | AK33: 0 | AL33: 6.529924 | AM33: 6.681788 | AN33: 6.754101 | AP33: Colombia | AQ33: 40
B34: Lebanon | C34: 561000 | D34: 393 | E34: 60251 | F34: 465 | G34: 49934 | H34: 161421 | I34: 828.8770053 | J34: =IF($B34='Input Sheet I'!$C$36,'Input Sheet I'!$F$17,"") ->  | K34: =IF($B34='Input Sheet I'!$C$36,I34/J34,"") ->  | M34: Liquefied Petroleum Gases | R34: 0.5023872179 | AB34: Côte d'Ivoire | AC34: 0 | AD34: 0 | AE34: 0 | AF34: 3.106002 | AG34: 2.782613 | AH34: 4.500726 | AI34: 3.099378 | AJ34: 3.055378 | AK34: 3.332763 | AL34: 6.20538 | AM34: 5.837991 | AN34: 7.833489 | AP34: Congo | AQ34: 207
B35: Lithuania | C35: 8200 | D35: 6 | E35: 1680 | F35: 4 | G35: 380 | H35: 1229 | I35: 487.804878 | J35: =IF($B35='Input Sheet I'!$C$36,'Input Sheet I'!$F$17,"") ->  | K35: =IF($B35='Input Sheet I'!$C$36,I35/J35,"") ->  | M35: Ethane | R35: 0.4904822699 | AB35: Croatia | AC35: 2.677879 | AD35: 2.754797 | AE35: 2.467839 | AF35: 10.606557 | AG35: 10.579291 | AH35: 9.856722 | AI35: 5.689338 | AJ35: 5.420103 | AK35: 4.832142 | AL35: 18.973774 | AM35: 18.754191 | AN35: 17.156703 | AP35: Costa Rica | AQ35: 752 | AW35: British (lbs) | AX35: lbs CO2e/yr | AY35: 0.453592
B36: Luxembourg | C36: 45800 | D36: 32 | E36: 9382 | F36: 20 | G36: 2134 | H36: 6899 | I36: 436.6812227 | J36: =IF($B36='Input Sheet I'!$C$36,'Input Sheet I'!$F$17,"") ->  | K36: =IF($B36='Input Sheet I'!$C$36,I36/J36,"") ->  | M36: Natural Gas | R36: 0.4468307939 | AB36: Cuba | AC36: 0.077877 | AD36: 0.067203 | AE36: 0.064631 | AF36: 27.822267 | AG36: 26.562527 | AH36: 26.795357 | AI36: 2.026758 | AJ36: 1.935754 | AK36: 1.956147 | AL36: 29.926902 | AM36: 28.565484 | AN36: 28.816135 | AP36: Côte d'Ivoire | AQ36: 426 | AW36: Metric (kg) | AX36: kg CO2e/yr | AY36: =1/AY35 -> 2.20462442
B37: Macedonia | C37: 47130 | D37: 33 | E37: 10613 | F37: 29 | G37: 3131 | H37: 10122 | I37: 615.3193295 | J37: =IF($B37='Input Sheet I'!$C$36,'Input Sheet I'!$F$17,"") ->  | K37: =IF($B37='Input Sheet I'!$C$36,I37/J37,"") ->  | M37: Waste Oils | R37: 0.6721692368 | AB37: Cyprus | AC37: 0.065161 | AD37: 0.02899 | AE37: 0.000515 | AF37: 7.09885 | AG37: 6.918299 | AH37: 6.460872 | AI37: 0 | AJ37: 0 | AK37: 0 | AL37: 7.164011 | AM37: 6.947289 | AN37: 6.461387 | AP37: Croatia | AQ37: 283
B38: Malta | C38: 48448 | D38: 34 | E38: 9925 | F38: 40 | G38: 4320 | H38: 13966 | I38: 825.6274769 | J38: =IF($B38='Input Sheet I'!$C$36,'Input Sheet I'!$F$17,"") ->  | K38: =IF($B38='Input Sheet I'!$C$36,I38/J38,"") ->  | M38: Peat | R38: 0.9255478005 | AB38: Czech Republic | AC38: 73.217632 | AD38: 73.850605 | AE38: 69.39185 | AF38: 22.818742 | AG38: 22.149603 | AH38: 21.749306 | AI38: 17.388577 | AJ38: 15.879116 | AK38: 15.60925 | AL38: 113.424951 | AM38: 111.879324 | AN38: 106.750406 | AP38: Cuba | AQ38: 591
B39: Mauritius | C39: 115113 | D39: 81 | E39: 61952 | F39: 94 | G39: 10139 | H39: 32777 | I39: 816.588917 | J39: =IF($B39='Input Sheet I'!$C$36,'Input Sheet I'!$F$17,"") ->  | K39: =IF($B39='Input Sheet I'!$C$36,I39/J39,"") ->  | M39: Wood / Wood Waste | R39: 0.979316895 | AB39: Dem. Rep. of Congo | AC39: 0 | AD39: 0 | AE39: 0 | AF39: 1.813256 | AG39: 2.283737 | AH39: 2.400416 | AI39: 0.016623 | AJ39: 0.016623 | AK39: 0.016623 | AL39: 1.829879 | AM39: 2.30036 | AN39: 2.417039 | AP39: Cyprus | AQ39: 744
B40: Mexico | C40: 2497077 | D40: 1748 | E40: 129536 | F40: 1372 | G40: 147472 | H40: 476732 | I40: 549.4424081 | J40: =IF($B40='Input Sheet I'!$C$36,'Input Sheet I'!$F$17,"") ->  | K40: =IF($B40='Input Sheet I'!$C$36,I40/J40,"") ->  | M40: Other Primary Solid Biomass | R40: 0.884077311 | AB40: Denmark | AC40: 15.328884 | AD40: 12.767221 | AE40: 10.035915 | AF40: 19.845389 | AG40: 18.600293 | AH40: 17.138199 | AI40: 10.338596 | AJ40: 8.820306 | AK40: 8.123605 | AL40: 45.512869 | AM40: 40.18782 | AN40: 35.297719 | AP40: Czech Republic | AQ40: 514
B41: Morocco | C41: 415000 | D41: 291 | E41: 85013 | F41: 354 | G41: 38076 | H41: 123089 | I41: 853.0120482 | J41: =IF($B41='Input Sheet I'!$C$36,'Input Sheet I'!$F$17,"") ->  | K41: =IF($B41='Input Sheet I'!$C$36,I41/J41,"") ->  | M41: Charcoal | R41: 0.9452369972 | AB41: Dominican Republic | AC41: 2.982441 | AD41: 3.106817 | AE41: 3.338822 | AF41: 14.439572 | AG41: 14.311669 | AH41: 14.271988 | AI41: 1.50303 | AJ41: 1.736618 | AK41: 2.20063 | AL41: 18.925043 | AM41: 19.155104 | AN41: 19.81144 | AP41: Dem. Rep. of Congo | AQ41: 3
B42: Mozambique | C42: 416 | D42: 0 | E42: 85 | F42: 0 | G42: 36 | H42: 118 | I42: 0 | J42: =IF($B42='Input Sheet I'!$C$36,'Input Sheet I'!$F$17,"") ->  | K42: =IF($B42='Input Sheet I'!$C$36,I42/J42,"") ->  | M42: Biogasoline | R42: 0.5660310698 | AB42: DPR of Korea | AC42: 61.685192 | AD42: 42.541984 | AE42: 42.905165 | AF42: 2.544258 | AG42: 2.618439 | AH42: 2.510201 | AI42: 0 | AJ42: 0 | AK42: 0 | AL42: 64.22945 | AM42: 45.160423 | AN42: 45.415366 | AP42: Denmark | AQ42: 303
B43: Namibia | C43: 22006 | D43: 15 | E43: 2718 | F43: 20 | G43: 2158 | H43: 6975 | I43: 908.8430428 | J43: =IF($B43='Input Sheet I'!$C$36,'Input Sheet I'!$F$17,"") ->  | K43: =IF($B43='Input Sheet I'!$C$36,I43/J43,"") ->  | M43: Biodiesels | R43: 0.5660310698 | AB43: Ecuador | AC43: 0 | AD43: 0 | AE43: 0 | AF43: 30.979134 | AG43: 30.787578 | AH43: 31.949433 | AI43: 0.989748 | AJ43: 0.874536 | AK43: 1.14745 | AL43: 31.968882 | AM43: 31.662114 | AN43: 33.096883 | AP43: Dominican Republic | AQ43: 290
B44: Netherlands | C44: 880450 | D44: 616 | E44: 132899 | F44: 310 | G44: 33302 | H44: 107655 | I44: 352.0926799 | J44: =IF($B44='Input Sheet I'!$C$36,'Input Sheet I'!$F$17,"") ->  | K44: =IF($B44='Input Sheet I'!$C$36,I44/J44,"") ->  | M44: Other Liquid Biofuels | R44: 0.6358734314 | AB44: Egypt | AC44: 1.606664 | AD44: 1.606664 | AE44: 1.474286 | AF44: 102.154285 | AG44: 101.127719 | AH44: 107.199105 | AI44: 80.283392 | AJ44: 87.725869 | AK44: 88.180581 | AL44: 184.044341 | AM44: 190.460252 | AN44: 196.853972 | AP44: DPR of Korea | AQ44: 499
B45: New Zealand | C45: 159645 | D45: 112 | E45: 32703 | F45: 99 | G45: 10592 | H45: 34241 | I45: 620.1259044 | J45: =IF($B45='Input Sheet I'!$C$36,'Input Sheet I'!$F$17,"") ->  | K45: =IF($B45='Input Sheet I'!$C$36,I45/J45,"") ->  | AB45: El Salvador | AC45: 0 | AD45: 0 | AE45: 0 | AF45: 5.84646 | AG45: 6.029794 | AH45: 6.150477 | AI45: 0 | AJ45: 0 | AK45: 0 | AL45: 5.84646 | AM45: 6.029794 | AN45: 6.150477 | AP45: Ecuador | AQ45: 319
B46: Norway | C46: 39576 | D46: 28 | E46: 1502 | F46: 15 | G46: 1573 | H46: 5084 | I46: 379.0175864 | J46: =IF($B46='Input Sheet I'!$C$36,'Input Sheet I'!$F$17,"") ->  | K46: =IF($B46='Input Sheet I'!$C$36,I46/J46,"") ->  | AB46: Eritrea | AC46: 0 | AD46: 0 | AE46: 0 | AF46: 0.476111 | AG46: 0.510456 | AH46: 0.541721 | AI46: 0 | AJ46: 0 | AK46: 0 | AL46: 0.476111 | AM46: 0.510456 | AN46: 0.541721 | AP46: Egypt | AQ46: 466
B47: Palestinian Territ. | C47: 1627000 | D47: 1139 | E47: 979454 | F47: 1580 | G47: 169832 | H47: 549015 | I47: 971.112477 | J47: =IF($B47='Input Sheet I'!$C$36,'Input Sheet I'!$F$17,"") ->  | K47: =IF($B47='Input Sheet I'!$C$36,I47/J47,"") ->  | AB47: Estonia | AC47: 14.179239 | AD47: 13.309291 | AE47: 11.997205 | AF47: 2.984449 | AG47: 3.013071 | AH47: 3.083309 | AI47: 1.314238 | AJ47: 1.175878 | AK47: 1.266106 | AL47: 18.477926 | AM47: 17.49824 | AN47: 16.34662 | AP47: El Salvador | AQ47: 349
B48: Poland | C48: 1485000 | D48: 1040 | E48: 186863 | F48: 606 | G48: 65177 | H48: 210698 | I48: 408.0808081 | J48: =IF($B48='Input Sheet I'!$C$36,'Input Sheet I'!$F$17,"") ->  | K48: =IF($B48='Input Sheet I'!$C$36,I48/J48,"") ->  | AB48: Ethiopia | AC48: 0.119593 | AD48: 0.406618 | AE48: 0.813236 | AF48: 5.94942 | AG48: 6.589393 | AH48: 7.115965 | AI48: 0 | AJ48: 0 | AK48: 0 | AL48: 6.069013 | AM48: 6.996011 | AN48: 7.929201 | AP48: Eritrea | AQ48: 672
B49: Portugal | C49: 904629 | D49: 633 | E49: 172974 | F49: 701 | G49: 75370 | H49: 243650 | I49: 774.9033029 | J49: =IF($B49='Input Sheet I'!$C$36,'Input Sheet I'!$F$17,"") ->  | K49: =IF($B49='Input Sheet I'!$C$36,I49/J49,"") ->  | AB49: Finland | AC49: 27.708783 | AD49: 22.916704 | AE49: 18.367431 | AF49: 25.688025 | AG49: 24.462442 | AH49: 23.755652 | AI49: 8.348461 | AJ49: 7.295085 | AK49: 6.456018 | AL49: 61.745269 | AM49: 54.674231 | AN49: 48.579101 | AP49: Estonia | AQ49: 704
B50: Romania | C50: 128550 | D50: 90 | E50: 26333 | F50: 73 | G50: 7864 | H50: 25422 | I50: 567.8724232 | J50: =IF($B50='Input Sheet I'!$C$36,'Input Sheet I'!$F$17,"") ->  | K50: =IF($B50='Input Sheet I'!$C$36,I50/J50,"") ->  | AB50: Former Soviet Union (if no detail) | AC50: x | AD50: x | AE50: x | AF50: x | AG50: x | AH50: x | AI50: x | AJ50: x | AK50: x | AP50: Ethiopia | AQ50: 118
B51: Russia | C51: 18213 | D51: 13 | E51: 825 | F51: 8 | G51: 815 | H51: 2635 | I51: 439.2466919 | J51: =IF($B51='Input Sheet I'!$C$36,'Input Sheet I'!$F$17,"") ->  | K51: =IF($B51='Input Sheet I'!$C$36,I51/J51,"") ->  | AB51: Former Yugoslavia (if no detail) | AC51: x | AD51: x | AE51: x | AF51: x | AG51: x | AH51: x | AI51: x | AJ51: x | AK51: x | AP51: Finland | AQ51: 205
B52: Slovakia | C52: 150200 | D52: 105 | E52: 20755 | F52: 71 | G52: 7603 | H52: 24577 | I52: 472.7030626 | J52: =IF($B52='Input Sheet I'!$C$36,'Input Sheet I'!$F$17,"") ->  | K52: =IF($B52='Input Sheet I'!$C$36,I52/J52,"") ->  | AB52: France | AC52: 42.449816 | AD52: 35.700016 | AE52: 40.249966 | AF52: 211.618814 | AG52: 204.642398 | AH52: 202.57037 | AI52: 95.602432 | AJ52: 82.91574 | AK52: 85.336673 | AL52: 349.671062 | AM52: 323.258154 | AN52: 328.157009 | AP52: France | AQ52: 90
B53: Slovenia | C53: 186800 | D53: 131 | E53: 28250 | F53: 78 | G53: 8353 | H53: 27003 | I53: 417.5588865 | J53: =IF($B53='Input Sheet I'!$C$36,'Input Sheet I'!$F$17,"") ->  | K53: =IF($B53='Input Sheet I'!$C$36,I53/J53,"") ->  | AB53: FYR of Macedonia | AC53: 5.372672 | AD53: 6.367473 | AE53: 5.77787 | AF53: 2.627709 | AG53: 2.651154 | AH53: 2.648517 | AI53: 0.221534 | AJ53: 0.256138 | AK53: 0.266529 | AL53: 8.221915 | AM53: 9.274765 | AN53: 8.692916 | AP53: FYR of Macedonia | AQ53: 710
B54: South Africa | C54: 1506611 | D54: 1055 | E54: 148948 | F54: 1056 | G54: 113516 | H54: 366964 | I54: 700.9108522 | J54: =IF($B54='Input Sheet I'!$C$36,'Input Sheet I'!$F$17,"") ->  | K54: =IF($B54='Input Sheet I'!$C$36,I54/J54,"") ->  | AB54: Gabon | AC54: 0 | AD54: 0 | AE54: 0 | AF54: 1.73847 | AG54: 1.761365 | AH54: 1.740333 | AI54: 0.627592 | AJ54: 0.706542 | AK54: 0.72668 | AL54: 2.366062 | AM54: 2.467907 | AN54: 2.467013 | AP54: Gabon | AQ54: 322
B55: Spain | C55: 3195339 | D55: 2237 | E55: 375932 | F55: 2228 | G55: 239497 | H55: 774222 | I55: 697.2656109 | J55: =IF($B55='Input Sheet I'!$C$36,'Input Sheet I'!$F$17,"") ->  | K55: =IF($B55='Input Sheet I'!$C$36,I55/J55,"") ->  | AB55: Georgia | AC55: 0.098835 | AD55: 0.260596 | AE55: 0.452623 | AF55: 2.610675 | AG55: 2.781027 | AH55: 2.749876 | AI55: 2.186907 | AJ55: 3.228557 | AK55: 3.606346 | AL55: 4.896417 | AM55: 6.27018 | AN55: 6.808845 | AP55: Georgia | AQ55: 129
B56: Sweden | C56: 454000 | D56: 318 | E56: 34572 | F56: 166 | G56: 17835 | H56: 57655 | I56: 365.6387665 | J56: =IF($B56='Input Sheet I'!$C$36,'Input Sheet I'!$F$17,"") ->  | K56: =IF($B56='Input Sheet I'!$C$36,I56/J56,"") ->  | AB56: Germany | AC56: 307.157429 | AD56: 306.891078 | AE56: 317.500131 | AF56: 265.320196 | AG56: 255.002199 | AH56: 256.392683 | AI56: 179.662727 | AJ56: 162.739526 | AK56: 163.131905 | AL56: 752.140352 | AM56: 724.632803 | AN56: 737.024719 | AP56: Germany | AQ56: 430
B57: Switzerland | C57: 1384940 | D57: 969 | E57: 167565 | F57: 547 | G57: 58786 | H57: 190038 | I57: 394.9629587 | J57: =IF($B57='Input Sheet I'!$C$36,'Input Sheet I'!$F$17,"") ->  | K57: =IF($B57='Input Sheet I'!$C$36,I57/J57,"") ->  | AB57: Ghana | AC57: 0 | AD57: 0 | AE57: 0 | AF57: 9.685918 | AG57: 9.414934 | AH57: 11.984443 | AI57: 0.827529 | AJ57: 1.617489 | AK57: 0.820898 | AL57: 10.513447 | AM57: 11.032423 | AN57: 12.805341 | AP57: Ghana | AQ57: 187
B58: Taiwan | C58: 1545628 | D58: 1082 | E58: 304849 | F58: 940 | G58: 101082 | H58: 326767 | I58: 608.1670363 | J58: =IF($B58='Input Sheet I'!$C$36,'Input Sheet I'!$F$17,"") ->  | K58: =IF($B58='Input Sheet I'!$C$36,I58/J58,"") ->  | AB58: Gibraltar | AC58: 0 | AD58: 0 | AE58: 0 | AF58: 0.531805 | AG58: 0.519416 | AH58: 0.528566 | AI58: 0 | AJ58: 0 | AK58: 0 | AL58: 0.531805 | AM58: 0.519416 | AN58: 0.528566 | AP58: Gibraltar | AQ58: 740
B59: Thailand | C59: 136611 | D59: 96 | E59: 27985 | F59: 110 | G59: 11871 | H59: 38376 | I59: 805.2060229 | J59: =IF($B59='Input Sheet I'!$C$36,'Input Sheet I'!$F$17,"") ->  | K59: =IF($B59='Input Sheet I'!$C$36,I59/J59,"") ->  | AB59: Greece | AC59: 32.947818 | AD59: 32.719161 | AE59: 32.959176 | AF59: 43.843324 | AG59: 41.226813 | AH59: 36.416997 | AI59: 7.237544 | AJ59: 8.764428 | AK59: 8.063581 | AL59: 84.028686 | AM59: 82.710402 | AN59: 77.439754 | AP59: Greece | AQ59: 722
B60: Tunisia | C60: 706380 | D60: 494 | E60: 247039 | F60: 635 | G60: 68239 | H60: 220596 | I60: 898.9495739 | J60: =IF($B60='Input Sheet I'!$C$36,'Input Sheet I'!$F$17,"") ->  | K60: =IF($B60='Input Sheet I'!$C$36,I60/J60,"") ->  | AB60: Guatemala | AC60: 1.174406 | AD60: 1.176797 | AE60: 1.188759 | AF60: 9.051937 | AG60: 9.202021 | AH60: 9.296508 | AI60: 0 | AJ60: 0 | AK60: 0 | AL60: 10.226343 | AM60: 10.378818 | AN60: 10.485267 | AP60: Guatemala | AQ60: 547
B61: Turkey | C61: 15670321 | D61: 10969 | E61: 3629246 | F61: 14059 | G61: 1511076 | H61: 4884855 | I61: 897.1737082 | J61: =IF($B61='Input Sheet I'!$C$36,'Input Sheet I'!$F$17,"") ->  | K61: =IF($B61='Input Sheet I'!$C$36,I61/J61,"") ->  | AB61: Haiti | AC61: 0 | AD61: 0 | AE61: 0 | AF61: 2.085042 | AG61: 2.132814 | AH61: 2.072005 | AI61: 0 | AJ61: 0 | AK61: 0 | AL61: 2.085042 | AM61: 2.132814 | AN61: 2.072005 | AP61: Haiti | AQ61: 344
B62: United Kingdom | C62: 743873 | D62: 521 | E62: 152382 | F62: 297 | G62: 31924 | H62: 103200 | I62: 399.2617019 | J62: =IF($B62='Input Sheet I'!$C$36,'Input Sheet I'!$F$17,"") ->  | K62: =IF($B62='Input Sheet I'!$C$36,I62/J62,"") ->  | AB62: Honduras | AC62: 0.471158 | AD62: 0.606898 | AE62: 0.617058 | AF62: 6.794892 | AG62: 7.023851 | AH62: 7.543608 | AI62: 0 | AJ62: 0 | AK62: 0 | AL62: 7.26605 | AM62: 7.630749 | AN62: 8.160666 | AP62: Honduras | AQ62: 544
B63: United States | C63: 23842764 | D63: 16690 | E63: 733165 | F63: 10873 | G63: 1168663 | H63: 3777936 | I63: 456.0293429 | J63: =IF($B63='Input Sheet I'!$C$36,'Input Sheet I'!$F$17,"") ->  | K63: =IF($B63='Input Sheet I'!$C$36,I63/J63,"") ->  | AB63: Hong Kong, China | AC63: 24.693632 | AD63: 29.967696 | AE63: 29.541942 | AF63: 9.534997 | AG63: 9.165916 | AH63: 9.441421 | AI63: 7.917288 | AJ63: 6.46343 | AK63: 6.00695 | AL63: 42.145917 | AM63: 45.597042 | AN63: 44.990313 | AP63: Hong Kong, China | AQ63: 763
B64: Uruguay | C64: 12571 | D64: 9 | E64: 2575 | F64: 8 | G64: 884 | H64: 2859 | I64: 636.3853313 | J64: =IF($B64='Input Sheet I'!$C$36,'Input Sheet I'!$F$17,"") ->  | K64: =IF($B64='Input Sheet I'!$C$36,I64/J64,"") ->  | AB64: Hungary | AC64: 10.448252 | AD64: 10.489268 | AE64: 10.190453 | AF64: 15.92742 | AG64: 15.356537 | AH64: 14.254126 | AI64: 22.171065 | AJ64: 21.086142 | AK64: 18.702294 | AL64: 48.546737 | AM64: 46.931947 | AN64: 43.146873 | AP64: Hungary | AQ64: 302
B65: Zimbabwe | C65: 22978 | D65: 16 | E65: 4707 | F65: 19 | G65: 2042 | H65: 6602 | I65: 826.8778832 | J65: =IF($B65='Input Sheet I'!$C$36,'Input Sheet I'!$F$17,"") ->  | K65: =IF($B65='Input Sheet I'!$C$36,I65/J65,"") ->  | AB65: Iceland | AC65: 0.370742 | AD65: 0.373393 | AE65: 0.38258 | AF65: 1.560003 | AG65: 1.479433 | AH65: 1.455317 | AI65: 0 | AJ65: 0 | AK65: 0 | AL65: 1.930745 | AM65: 1.852826 | AN65: 1.837897 | AP65: Iceland | AQ65: 0
B66: Avg of all other countries | C66: 26641715 | D66: 18649 | E66: 5472916 | F66: 15682 | G66: 1685544 | H66: 5448859 | I66: 588.6257698 | J66: =IF($B66='Input Sheet I'!$C$36,'Input Sheet I'!$F$17,"") ->  | K66: =IF($B66='Input Sheet I'!$C$36,I66/J66,"") ->  | AB66: India | AC66: 1187.268699 | AD66: 1248.956849 | AE66: 1359.277176 | AF66: 443.527125 | AG66: 459.923725 | AH66: 489.123058 | AI66: 117.793418 | AJ66: 118.918619 | AK66: 104.453575 | AL66: 1748.589242 | AM66: 1827.799193 | AN66: 1952.853809 | AP66: India | AQ66: 951
AB67: Indonesia | AC67: 106.803596 | AD67: 106.635684 | AE67: 124.406041 | AF67: 208.643881 | AG67: 216.382259 | AH67: 231.379028 | AI67: 76.988898 | AJ67: 77.255334 | AK67: 79.643682 | AL67: 392.436375 | AM67: 400.273277 | AN67: 435.428751 | AP67: Indonesia | AQ67: 746
AB68: Iraq | AC68: 0 | AD68: 0 | AE68: 0 | AF68: 91.381782 | AG68: 96.457568 | AH68: 107.473412 | AI68: 9.787952 | AJ68: 11.696636 | AK68: 11.510511 | AL68: 101.169734 | AM68: 108.154204 | AN68: 118.983923 | AP68: Iraq | AQ68: 684
AB69: Ireland | AC69: 8.027571 | AD69: 7.956017 | AE69: 9.164174 | AF69: 20.001858 | AG69: 17.432945 | AH69: 16.950273 | AI69: 10.826524 | AJ69: 9.474963 | AK69: 9.233742 | AL69: 38.855953 | AM69: 34.863925 | AN69: 35.348189 | AP69: Ireland | AQ69: 465
AB70: Islamic Rep. of Iran | AC70: 3.270792 | AD70: 3.889074 | AE70: 3.595098 | AF70: 223.948934 | AG70: 227.924307 | AH70: 236.084638 | AI70: 281.250518 | AJ70: 293.957792 | AK70: 292.474946 | AL70: 508.470244 | AM70: 525.771173 | AN70: 532.154682 | AP70: Islamic Republic of Iran | AQ70: 630
AB71: Israel | AC71: 28.735256 | AD71: 29.794156 | AE71: 33.006317 | AF71: 29.179285 | AG71: 28.022607 | AH71: 35.347331 | AI71: 10.137309 | AJ71: 9.421624 | AK71: 4.91379 | AL71: =AI71+AF71+AC71 -> 68.05185 | AM71: =AJ71+AG71+AD71 -> 67.238387 | AN71: =AK71+AH71+AE71 -> 73.267438 | AP71: Israel | AQ71: 695
AB72: Italy | AC72: 51.807752 | AD72: 58.383369 | AE72: 60.417354 | AF72: 185.244351 | AG72: 181.609417 | AH72: 167.433126 | AI72: 157.433102 | AJ72: 147.96562 | AK72: 142.042249 | AL72: 394.485205 | AM72: 387.958406 | AN72: 369.892729 | AP72: Italy | AQ72: 386
AB73: Jamaica | AC73: 0.129161 | AD73: 0.15547 | AE73: 0.174605 | AF73: 6.764314 | AG73: 7.111398 | AH73: 6.919265 | AI73: 0 | AJ73: 0 | AK73: 0 | AL73: 6.893475 | AM73: 7.266868 | AN73: 7.09387 | AP73: Jamaica | AQ73: 707
AB74: Japan | AC74: 419.104276 | AD74: 400.06421 | AE74: 419.745378 | AF74: 494.192116 | AG74: 525.202286 | AH74: 535.765921 | AI74: 215.565075 | AJ74: 250.368092 | AK74: 259.841843 | AL74: 1128.861467 | AM74: 1175.634588 | AN74: 1215.353142 | AP74: Japan | AQ74: 415
AB75: Jordan | AC75: 0 | AD75: 0 | AE75: 0 | AF75: 13.424182 | AG75: 17.756281 | AH75: 20.160137 | AI75: 5.347266 | AJ75: 2.038862 | AK75: 1.539542 | AL75: 18.771448 | AM75: 19.795143 | AN75: 21.699679 | AP75: Jordan | AQ75: 581
AB76: Kazakhstan | AC76: 134.194119 | AD76: 142.075431 | AE76: 144.307689 | AF76: 29.454149 | AG76: 35.53977 | AH76: 32.069226 | AI76: 53.698637 | AJ76: 53.304259 | AK76: 49.404294 | AL76: 217.346905 | AM76: 230.91946 | AN76: 225.781209 | AP76: Kazakhstan | AQ76: 480
AB77: Kenya | AC77: 0.641022 | AD77: 0.916084 | AE77: 0.820409 | AF77: 10.733219 | AG77: 10.634433 | AH77: 9.821026 | AI77: 0 | AJ77: 0 | AK77: 0 | AL77: 11.374241 | AM77: 11.550517 | AN77: 10.641435 | AP77: Kenya | AQ77: 395
AB78: Korea | AC78: 276.908584 | AD78: 297.893691 | AE78: 291.227031 | AF78: 186.67194 | AG78: 182.546616 | AH78: 183.595751 | AI78: 90.738198 | AJ78: 97.81193 | AK78: 105.975718 | AL78: 554.318722 | AM78: 578.252237 | AN78: 580.7985 | AP78: Korea | AQ78: 498
AB79: Kosovo | AC79: 6.951472 | AD79: 6.735009 | AE79: 6.355737 | AF79: 1.614348 | AG79: 1.744608 | AH79: 1.643331 | AI79: 0 | AJ79: 0 | AK79: 0 | AL79: 8.56582 | AM79: 8.479617 | AN79: 7.999068 | AP79: Kuwait | AQ79: 870
AB80: Kuwait | AC80: 0 | AD80: 0 | AE80: 0 | AF80: 52.611795 | AG80: 52.305193 | AH80: 56.595013 | AI80: 27.697804 | AJ80: 32.430843 | AK80: 34.667586 | AL80: 80.309599 | AM80: 84.736036 | AN80: 91.262599 | AP80: Kyrgyzstan | AQ80: 81
AB81: Kyrgyzstan | AC81: 2.770434 | AD81: 2.962151 | AE81: 4.152788 | AF81: 2.799656 | AG81: 3.674995 | AH81: 4.691641 | AI81: 0.46351 | AJ81: 0.561446 | AK81: 0.668871 | AL81: 6.0336 | AM81: 7.198592 | AN81: 9.5133 | AP81: Latin America | AQ81: 344
AB82: Latvia | AC82: 0.41868 | AD82: 0.430833 | AE82: 0.358722 | AF82: 4.141083 | AG82: 3.6822 | AH82: 3.596471 | AI82: 3.400516 | AJ82: 2.982061 | AK82: 2.801603 | AL82: 7.960279 | AM82: 7.095094 | AN82: 6.756796 | AP82: Latvia | AQ82: 153
AB83: Lebanon | AC83: 0.57728 | AD83: 0.641425 | AE83: 0.641425 | AF83: 17.251731 | AG83: 17.844638 | AH83: 20.384217 | AI83: 0.495553 | AJ83: 0 | AK83: 0 | AL83: 18.324564 | AM83: 18.486063 | AN83: 21.025642 | AP83: Lebanon | AQ83: 717
AB84: Libya | AC84: 0 | AD84: 0 | AE84: 0 | AF84: 38.752976 | AG84: 25.352617 | AH84: 33.825202 | AI84: 12.304059 | AJ84: 9.952091 | AK84: 10.376789 | AL84: 51.057035 | AM84: 35.304708 | AN84: 44.201991 | AP84: Libyan Arab Jamahiriya | AQ84: 872
AB85: Lithuania | AC85: 0.82162 | AD85: 0.949608 | AE85: 0.929861 | AF85: 7.088798 | AG85: 6.78232 | AH85: 7.020411 | AI85: 5.410543 | AJ85: 5.551518 | AK85: 5.3761 | AL85: 13.320961 | AM85: 13.283446 | AN85: 13.326372 | AP85: Lithuania | AQ85: 111
AB86: Luxembourg | AC86: 0.262375 | AD86: 0.227813 | AE86: 0.210747 | AF86: 7.358757 | AG86: 7.639129 | AH86: 7.400894 | AI86: 2.795674 | AJ86: 2.413276 | AK86: 2.464151 | AL86: 10.416806 | AM86: 10.280218 | AN86: 10.075792 | AP86: Luxembourg | AQ86: 384
AB87: Malaysia | AC87: 57.358601 | AD87: 57.336581 | AE87: 61.645634 | AF87: 64.333972 | AG87: 70.518584 | AH87: 68.348551 | AI87: 65.353013 | AJ87: 64.50029 | AK87: 65.886325 | AL87: 187.045586 | AM87: 192.355455 | AN87: 195.88051 | AP87: Malaysia | AQ87: 649
AB88: Malta | AC88: 0 | AD88: 0 | AE88: 0 | AF88: 2.469066 | AG88: 2.469472 | AH88: 2.523008 | AI88: 0 | AJ88: 0 | AK88: 0 | AL88: 2.469066 | AM88: 2.469472 | AN88: 2.523008 | AP88: Malta | AQ88: 850
AB89: Mauritius | AC89: 1.597768 | AD89: 1.533184 | AE89: 1.614509 | AF89: 2.010713 | AG89: 2.064059 | AH89: 2.076552 | AI89: 0 | AJ89: 0 | AK89: 0 | AL89: 3.608481 | AM89: 3.597243 | AN89: 3.691061 | AP89: Mexico | AQ89: 455
AB90: Mexico | AC90: 39.528945 | AD90: 40.977598 | AE90: 40.706196 | AF90: 254.568118 | AG90: 260.996604 | AH90: 259.837342 | AI90: 123.838389 | AJ90: 130.528458 | AK90: 135.245171 | AL90: 417.935452 | AM90: 432.50266 | AN90: 435.788709 | AP90: Middle East | AQ90: 690
AB91: Mongolia | AC91: 10.046467 | AD91: 9.902333 | AE91: 10.733242 | AF91: 2.48032 | AG91: 3.082407 | AH91: 3.482794 | AI91: 0 | AJ91: 0 | AK91: 0 | AL91: 12.526787 | AM91: 12.98474 | AN91: 14.216036 | AP91: Mongolia | AQ91: 535
AB92: Montenegro | AC92: 1.707169 | AD92: 1.761971 | AE92: 1.582031 | AF92: 0.775949 | AG92: 0.733335 | AH92: 0.717418 | AI92: 0 | AJ92: 0 | AK92: 0 | AL92: 2.483118 | AM92: 2.495306 | AN92: 2.299449 | AP92: Morocco | AQ92: 638
AB93: Morocco | AC93: 10.833853 | AD93: 11.556281 | AE93: 11.738168 | AF93: 34.13077 | AG93: 36.977158 | AH93: 37.607511 | AI93: 1.331366 | AJ93: 1.684738 | AK93: 2.493832 | AL93: 46.295989 | AM93: 50.218177 | AN93: 51.839511 | AP93: Mozambique | AQ93: 1
AB94: Mozambique | AC94: 0.023173 | AD94: 0.120497 | AE94: 0.037076 | AF94: 2.171792 | AG94: 2.48832 | AH94: 2.373312 | AI94: 0.158503 | AJ94: 0.186076 | AK94: 0.185524 | AL94: 2.353468 | AM94: 2.794893 | AN94: 2.595912 | AP94: Myanmar | AQ94: 196
AB95: Myanmar | AC95: 1.606704 | AD95: 1.598223 | AE95: 1.883813 | AF95: 3.326391 | AG95: 3.499299 | AH95: 6.134621 | AI95: 3.103556 | AJ95: 3.162358 | AK95: 3.63358 | AL95: 8.036651 | AM95: 8.25988 | AN95: 11.652014 | AP95: Namibia | AQ95: 237
AB96: Namibia | AC96: 0.073632 | AD96: 0.027349 | AE96: 0.021038 | AF96: 2.915584 | AG96: 2.981527 | AH96: 3.1629 | AI96: 0 | AJ96: 0 | AK96: 0 | AL96: 2.989216 | AM96: 3.008876 | AN96: 3.183938 | AP96: Nepal | AQ96: 4
AB97: Nepal | AC97: 1.176102 | AD97: 1.397351 | AE97: 1.667503 | AF97: 2.891372 | AG97: 2.948119 | AH97: 3.226863 | AI97: 0 | AJ97: 0 | AK97: 0 | AL97: 4.067474 | AM97: 4.34547 | AN97: 4.894366 | AP97: Netherlands | AQ97: 374
AB98: Netherlands | AC98: 28.191137 | AD98: 27.321514 | AE98: 30.376864 | AF98: 65.441456 | AG98: 65.615743 | AH98: 64.435277 | AI98: 90.073357 | AJ98: 78.500615 | AK98: 75.560238 | AL98: 183.70595 | AM98: 171.437872 | AN98: 170.372379 | AP98: Netherlands Antilles | AQ98: 506
AB99: Netherlands Antilles | AC99: 0 | AD99: 0 | AE99: 0 | AF99: 4.136519 | AG99: 4.721043 | AH99: 4.773989 | AI99: 0 | AJ99: 0 | AK99: 0 | AL99: 4.136519 | AM99: 4.721043 | AN99: 4.773989 | AP99: New Zealand | AQ99: 167
AB100: New Zealand | AC100: 5.348133 | AD100: 5.205496 | AE100: 6.531912 | AF100: 17.432147 | AG100: 17.53689 | AH100: 17.492598 | AI100: 8.215335 | AJ100: 7.621973 | AK100: 8.118855 | AL100: 30.995615 | AM100: 30.364359 | AN100: 32.143365 | AP100: Nicaragua | AQ100: 302
AB101: Nicaragua | AC101: 0 | AD101: 0 | AE101: 0 | AF101: 4.357015 | AG101: 4.480841 | AH101: 4.300033 | AI101: 0 | AJ101: 0 | AK101: 0 | AL101: 4.357015 | AM101: 4.480841 | AN101: 4.300033 | AP101: Nigeria | AQ101: 416
AB102: Nigeria | AC102: 0.090889 | AD102: 0.076539 | AE102: 0.114811 | AF102: 36.169853 | AG102: 33.798124 | AH102: 35.80283 | AI102: 20.119694 | AJ102: 27.947643 | AK102: 28.639723 | AL102: 56.380436 | AM102: 61.822306 | AN102: 64.557364 | AP102: Non-OECD Europe and Eurasia | AQ102: 355
AB103: Norway | AC103: 2.739711 | AD103: 2.869482 | AE103: 2.83615 | AF103: 23.974772 | AG103: 22.929447 | AH103: 22.480679 | AI103: 11.916145 | AJ103: 11.152368 | AK103: 9.938949 | AL103: 38.630628 | AM103: 36.951297 | AN103: 35.255778 | AP103: Norway | AQ103: 17
AB104: Oman | AC104: 0 | AD104: 0 | AE104: 0 | AF104: 19.351727 | AG104: 22.938025 | AH104: 24.61636 | AI104: 38.397981 | AJ104: 42.7437 | AK104: 43.016683 | AL104: 57.749708 | AM104: 65.681725 | AN104: 67.633043 | AP104: OECD Americas | AQ104: 464
AB105: Other Africa | AC105: 2.754384 | AD105: 2.865441 | AE105: 3.000411 | AF105: 23.181487 | AG105: 24.085495 | AH105: 25.211206 | AI105: 2.326974 | AJ105: 2.400078 | AK105: 2.324701 | AL105: 28.262845 | AM105: 29.351014 | AN105: 30.536318 | AP105: OECD Asia Oceania | AQ105: 499
AB106: Other Asia | AC106: 4.420033 | AD106: 4.883989 | AE106: 5.254195 | AF106: 16.775356 | AG106: 18.505263 | AH106: 19.909546 | AI106: 0.855753 | AJ106: 0.945351 | AK106: 1.017021 | AL106: 22.051142 | AM106: 24.334603 | AN106: 26.180762 | AP106: OECD Europe | AQ106: 326
AB107: Other Non-OECD Americas | AC107: 0.018684 | AD107: 0.018684 | AE107: 0.018684 | AF107: 17.268508 | AG107: 17.271462 | AH107: 17.531674 | AI107: 1.537222 | AJ107: 1.536921 | AK107: 1.555853 | AL107: 18.824414 | AM107: 18.827067 | AN107: 19.106211 | AP107: Oman | AQ107: 842
AB108: Pakistan | AC108: 16.038052 | AD108: 15.803506 | AE108: 14.220119 | AF108: 62.175002 | AG108: 61.406882 | AH108: 64.013892 | AI108: 57.193706 | AJ108: 59.182606 | AK108: 59.204169 | AL108: 135.40676 | AM108: 136.392994 | AN108: 137.43818 | AP108: Other Africa | AQ108: 494
AB109: Panama | AC109: 0.319853 | AD109: 0.803027 | AE109: 1.259829 | AF109: 8.616233 | AG109: 8.863751 | AH109: 8.620057 | AI109: 0 | AJ109: 0 | AK109: 0 | AL109: 8.936086 | AM109: 9.666778 | AN109: 9.879886 | AP109: Other Asia | AQ109: 268
AB110: Paraguay | AC110: 0 | AD110: 0 | AE110: 0 | AF110: 4.687773 | AG110: 4.9064 | AH110: 5.057468 | AI110: 0 | AJ110: 0 | AK110: 0 | AL110: 4.687773 | AM110: 4.9064 | AN110: 5.057468 | AP110: Other Latin America | AQ110: 175
AB111: People's Rep. of China | AC111: 5980.360836 | AD111: 6592.796968 | AE111: 6764.426267 | AF111: 1060.511775 | AG111: 1103.188499 | AH111: 1153.678663 | AI111: 194.739521 | AJ111: 238.478812 | AK111: 266.238484 | AL111: 7235.612132 | AM111: 7934.464279 | AN111: 8184.343414 | AP111: Pakistan | AQ111: 458
AB112: Peru | AC112: 3.489859 | AD112: 3.264603 | AE112: 3.162962 | AF112: 25.426481 | AG112: 26.337641 | AH112: 27.178024 | AI112: 12.841375 | AJ112: 15.076359 | AK112: 15.478398 | AL112: 41.757715 | AM112: 44.678603 | AN112: 45.819384 | AP112: Panama | AQ112: -
AB113: Philippines | AC113: 29.181994 | AD113: 31.99755 | AE113: 33.634692 | AF113: 39.784721 | AG113: 36.936784 | AH113: 38.249383 | AI113: 7.123259 | AJ113: 7.690835 | AK113: 7.552318 | AL113: 76.089974 | AM113: 76.625169 | AN113: 79.436393 | AP113: Paraguay | AQ113: 236
AB114: Poland | AC114: 208.619552 | AD114: 203.421823 | AE114: 198.743597 | AF114: 67.103036 | AG114: 66.477653 | AH114: 63.045278 | AI114: 27.936232 | AJ114: 28.111928 | AK114: 29.223706 | AL114: 303.65882 | AM114: 298.011404 | AN114: 291.012581 | AP114: People's Rep. of China | AQ114: 743
AB115: Portugal | AC115: 6.398414 | AD115: 8.650117 | AE115: 11.356331 | AF115: 30.551795 | AG115: 27.520597 | AH115: 24.373818 | AI115: 10.419458 | AJ115: 10.562692 | AK115: 9.085477 | AL115: 47.369667 | AM115: 46.733406 | AN115: 44.815626 | AP115: Peru | AQ115: 719
AB116: Qatar | AC116: 0 | AD116: 0 | AE116: 0 | AF116: 14.842302 | AG116: 12.264408 | AH116: 15.935605 | AI116: 45.73074 | AJ116: 54.793513 | AK116: 59.848258 | AL116: 60.573042 | AM116: 67.057921 | AN116: 75.783863 | AP116: Philippines | AQ116: 478
AB117: Republic of Moldova | AC117: 0.382143 | AD117: 0.389788 | AE117: 0.433146 | AF117: 2.204964 | AG117: 2.318547 | AH117: 2.039294 | AI117: 5.300008 | AJ117: 5.175303 | AK117: 5.145368 | AL117: 7.887115 | AM117: 7.883638 | AN117: 7.617808 | AP117: Poland | AQ117: 640
AB118: Romania | AC118: 28.971679 | AD118: 33.878108 | AE118: 31.089091 | AF118: 22.625562 | AG118: 23.434599 | AH118: 24.269398 | AI118: 23.681684 | AJ118: 24.19354 | AK118: 23.491695 | AL118: 75.278925 | AM118: 81.506247 | AN118: 78.850184 | AP118: Portugal | AQ118: 368
AB119: Russian Federation | AC119: 391.922554 | AD119: 411.080321 | AE119: 425.240297 | AF119: 318.363811 | AG119: 350.198516 | AH119: 350.024014 | AI119: 851.729747 | AJ119: 873.47779 | AK119: 864.877309 | AL119: 1562.016112 | AM119: 1634.756627 | AN119: 1640.14162 | AP119: Qatar | AQ119: 494
AB120: Saudi Arabia | AC120: 0 | AD120: 0 | AE120: 0 | AF120: 295.972857 | AG120: 309.496976 | AH120: 327.560499 | AI120: 118.878223 | AJ120: 120.266146 | AK120: 131.241855 | AL120: 414.85108 | AM120: 429.763122 | AN120: 458.802354 | AP120: Qatar | AQ120: 400
AB121: Senegal | AC121: 0.689552 | AD121: 0.965853 | AE121: 0.838516 | AF121: 4.693521 | AG121: 4.750347 | AH121: 4.746003 | AI121: 0.046206 | AJ121: 0.035808 | AK121: 0.051579 | AL121: 5.429279 | AM121: 5.752008 | AN121: 5.636098 | AP121: Romania | AQ121: 414
AB122: Serbia | AC122: 31.698658 | AD122: 35.904508 | AE122: 31.189165 | AF122: 9.91231 | AG122: 9.580575 | AH122: 9.008942 | AI122: 4.124574 | AJ122: 4.260441 | AK122: 3.884884 | AL122: 45.735542 | AM122: 49.745524 | AN122: 44.082991 | AP122: Russian Federation | AQ122: 317
AB123: Singapore | AC123: 0.032882 | AD123: 0.032882 | AE123: 0.032882 | AF123: 31.003801 | AG123: 31.822036 | AH123: 29.942016 | AI123: 16.569092 | AJ123: 17.109194 | AK123: 18.402845 | AL123: 47.605775 | AM123: 48.964112 | AN123: 48.377743 | AP123: Saudi Arabia | AQ123: 757
AB124: Slovak Republic | AC124: 14.091668 | AD124: 13.866018 | AE124: 12.800328 | AF124: 9.838312 | AG124: 9.707065 | AH124: 9.277248 | AI124: 11.15327 | AJ124: 10.117853 | AK124: 9.603239 | AL124: 35.08325 | AM124: 33.690936 | AN124: 31.680815 | AP124: Senegal | AQ124: 614
AB125: Slovenia | AC125: 5.917518 | AD125: 5.999875 | AE125: 5.701756 | AF125: 7.4188 | AG125: 7.396797 | AH125: 7.124527 | AI125: 1.955034 | AJ125: 1.719496 | AK125: 1.655695 | AL125: 15.291352 | AM125: 15.116168 | AN125: 14.481978 | AP125: Serbia | AQ125: 680
AB126: South Africa | AC126: 301.385221 | AD126: 283.181053 | AE126: 298.39128 | AF126: 70.874523 | AG126: 74.298341 | AH126: 73.748297 | AI126: 4.05372 | AJ126: 4.034028 | AK126: 3.98481 | AL126: 376.313464 | AM126: 361.513422 | AN126: 376.124387 | AP126: Singapore | AQ126: 519
AB127: Spain | AC127: 31.394283 | AD127: 49.946609 | AE127: 58.407336 | AF127: 163.727392 | AG127: 152.653851 | AH127: 142.160171 | AI127: 71.977177 | AJ127: 66.922372 | AK127: 65.21242 | AL127: 267.098852 | AM127: 269.522832 | AN127: 265.779927 | AP127: Slovak Republic | AQ127: 222
AB128: Sri Lanka | AC128: 0.258124 | AD128: 1.386293 | AE128: 1.967171 | AF128: 11.96958 | AG128: 13.06577 | AH128: 13.896953 | AI128: 0 | AJ128: 0 | AK128: 0 | AL128: 12.227704 | AM128: 14.452063 | AN128: 15.864124 | AP128: Slovenia | AQ128: 316
AB129: Sudan | AC129: 0 | AD129: 0 | AE129: 0 | AF129: 15.476723 | AG129: 14.581204 | AH129: 14.4624 | AI129: 0 | AJ129: 0 | AK129: 0 | AL129: 15.476723 | AM129: 14.581204 | AN129: 14.4624 | AP129: South Africa | AQ129: 926
AB130: Sweden | AC130: 8.930444 | AD130: 8.303993 | AE130: 7.213691 | AF130: 32.770036 | AG130: 30.17289 | AH130: 28.379021 | AI130: 3.172101 | AJ130: 2.634902 | AK130: 2.354479 | AL130: 44.872581 | AM130: 41.111785 | AN130: 37.947191 | AP130: Spain | AQ130: 299
AB131: Switzerland | AC131: 0.610359 | AD131: 0.57296 | AE131: 0.522939 | AF131: 32.713491 | AG131: 29.509661 | AH131: 30.306187 | AI131: 7.001274 | AJ131: 6.215983 | AK131: 6.813936 | AL131: 40.325124 | AM131: 36.298604 | AN131: 37.643062 | AP131: Sri Lanka | AQ131: 460
AB132: Tajikistan | AC132: 0.346975 | AD132: 0.384186 | AE132: 0.736293 | AF132: 1.55935 | AG132: 1.631689 | AH132: 1.725133 | AI132: 0.375569 | AJ132: 0.378836 | AK132: 0.275022 | AL132: 2.281894 | AM132: 2.394711 | AN132: 2.736448 | AP132: Sudan | AQ132: 356
AB133: Thailand | AC133: 64.167105 | AD133: 72.115075 | AE133: 68.17756 | AF133: 95.907257 | AG133: 98.963593 | AH133: 107.383805 | AI133: 76.099862 | AJ133: 70.607339 | AK133: 81.090933 | AL133: 236.174224 | AM133: 241.686007 | AN133: 256.652298 | AP133: Sweden | AQ133: 43
AB134: Togo | AC134: 0 | AD134: 0 | AE134: 0 | AF134: 2.063542 | AG134: 1.882352 | AH134: 1.616703 | AI134: 0 | AJ134: 0 | AK134: 0 | AL134: =AI134+AF134+AC134 -> 2.063542 | AM134: =AJ134+AG134+AD134 -> 1.882352 | AN134: =AK134+AH134+AE134 -> 1.616703 | AP134: Switzerland | AQ134: 40
AB135: Trinidad and Tobago | AC135: 0 | AD135: 0 | AE135: 0 | AF135: 4.817456 | AG135: 4.629218 | AH135: 4.41168 | AI135: 33.583232 | AJ135: 33.293684 | AK135: 32.680201 | AL135: 38.400688 | AM135: 37.922902 | AN135: 37.091881 | AP135: Syrian Arab Republic | AQ135: 641
AB136: Tunisia | AC136: 0 | AD136: 0 | AE136: 0 | AF136: 11.920313 | AG136: 11.013771 | AH136: 11.289498 | AI136: 11.131373 | AJ136: 10.869112 | AK136: 11.754548 | AL136: 23.051686 | AM136: 21.882883 | AN136: 23.044046 | AP136: Tajikistan | AQ136: 29
AB137: Turkey | AC137: 119.746194 | AD137: 125.095458 | AE137: 138.857584 | AF137: 72.776883 | AG137: 74.721497 | AH137: 76.511881 | AI137: 73.192146 | AJ137: 85.749373 | AK137: 86.84542 | AL137: 265.715223 | AM137: 285.566328 | AN137: 302.214885 | AP137: Thailand | AQ137: 513
AB138: Turkmenistan | AC138: 0 | AD138: 0 | AE138: 0 | AF138: 16.074454 | AG138: 16.93862 | AH138: 17.815175 | AI138: 40.515275 | AJ138: 44.608217 | AK138: 46.009293 | AL138: 56.589729 | AM138: 61.546837 | AN138: 63.824468 | AP138: Togo | AQ138: 202
AB139: Ukraine | AC139: 132.317746 | AD139: 144.00903 | AE139: 149.578373 | AF139: 37.280546 | AG139: 37.044935 | AH139: 36.382719 | AI139: 102.062316 | AJ139: 104.339259 | AK139: 95.113645 | AL139: 271.660608 | AM139: 285.393224 | AN139: 281.074737 | AP139: Trinidad and Tobago | AQ139: 253
AB140: United Arab Emirates | AC140: 2.779347 | AD140: 4.80226 | AE140: 6.542106 | AF140: 34.308761 | AG140: 35.293336 | AH140: 36.179311 | AI140: 115.182144 | AJ140: 118.36844 | AK140: 128.244901 | AL140: 152.270252 | AM140: 158.464036 | AN140: 170.966318 | AP140: Tunisia | AQ140: 538
AB141: United Kingdom | AC141: 111.718387 | AD141: 113.054227 | AE141: 143.527654 | AF141: 165.929093 | AG141: 159.094451 | AH141: 157.919803 | AI141: 194.241464 | AJ141: 161.320511 | AK141: 152.538477 | AL141: 471.888944 | AM141: 433.469189 | AN141: 453.985934 | AP141: Turkey | AQ141: 480
AB142: United Rep. of Tanzania | AC142: 0 | AD142: 0.007177 | AE142: 0.188959 | AF142: 4.733531 | AG142: 5.695511 | AH142: 6.804683 | AI142: 1.497005 | AJ142: 1.659729 | AK142: 1.898389 | AL142: 6.230536 | AM142: 7.362417 | AN142: 8.892031 | AP142: Turkmenistan | AQ142: 789
AB143: United States | AC143: 1940.722823 | AD143: 1830.413849 | AE143: 1612.767179 | AF143: 2158.711911 | AG143: 2111.246034 | AH143: 2055.510362 | AI143: 1298.638947 | AJ143: 1315.849224 | AK143: 1375.028447 | AL143: 5398.073681 | AM143: 5257.509107 | AN143: 5043.305988 | AP143: Ukraine | AQ143: 374
AB144: Uruguay | AC144: 0.009568 | AD144: 0.004782 | AE144: 0.007177 | AF144: 6.014197 | AG144: 7.218899 | AH144: 8.262268 | AI144: 0.149013 | AJ144: 0.165183 | AK144: 0.117776 | AL144: 6.172778 | AM144: 7.388864 | AN144: 8.387221 | AP144: United Arab Emirates | AQ144: 631
AB145: Uzbekistan | AC145: 5.361383 | AD145: 5.636164 | AE145: 5.692843 | AF145: 11.027527 | AG145: 10.157931 | AH145: 9.05357 | AI145: 83.774848 | AJ145: 93.412682 | AK145: 96.388816 | AL145: 100.163758 | AM145: 109.206777 | AN145: 111.135229 | AP145: United Kingdom | AQ145: 450
AB146: Venezuela | AC146: 0.773552 | AD146: 0.79622 | AE146: 0.818888 | AF146: 107.919924 | AG146: 99.169652 | AH146: 114.426069 | AI146: 73.661494 | AJ146: 60.670861 | AK146: 63.033465 | AL146: 182.35497 | AM146: 160.636733 | AN146: 178.278422 | AP146: United Rep. of Tanzania | AQ146: 281
AB147: Viet Nam | AC147: 59.004275 | AD147: 62.752708 | AE147: 66.517592 | AF147: 51.449641 | AG147: 54.448306 | AH147: 57.448174 | AI147: 18.980609 | AJ147: 17.119393 | AK147: 18.88589 | AL147: 129.434525 | AM147: 134.320407 | AN147: 142.851656 | AP147: United States | AQ147: 508
AB148: Yemen | AC148: 0 | AD148: 0 | AE148: 0 | AF148: 21.691095 | AG148: 18.493567 | AH148: 18.382749 | AI148: 1.985825 | AJ148: 1.379582 | AK148: 1.588662 | AL148: 23.67692 | AM148: 19.873149 | AN148: 19.971411 | AP148: Uruguay | AQ148: 199
AB149: Zambia | AC149: 0.00229 | AD149: 0.00229 | AE149: 0.206139 | AF149: 1.744978 | AG149: 2.104833 | AH149: 2.551546 | AI149: 0 | AJ149: 0 | AK149: 0 | AL149: 1.747268 | AM149: 2.107123 | AN149: 2.757685 | AP149: Uzbekistan | AQ149: 461
AB150: Zimbabwe | AC150: 6.85664 | AD150: 7.495818 | AE150: 7.842013 | AF150: 1.886044 | AG150: 2.043046 | AH150: 2.137097 | AI150: 0 | AJ150: 0 | AK150: 0 | AL150: 8.742684 | AM150: 9.538864 | AN150: 9.97911 | AP150: Venezuela | AQ150: 249
AP151: Vietnam | AQ151: 384
AP152: Yemen | AQ152: 630
AP153: Zambia | AQ153: 3
AP154: Zimbabwe | AQ154: 619
